Cogmind - Beta 10.1 @@@ ROGUE MODE // 2020.09.20 @ 08:50:24 Player: cptwinky Result: Destroyed by Executioner with Helical Railgun Performance ------------- Evolutions (9) 4500 Regions Visited (33) 6600 Robots Destroyed (487) 2435 Value Destroyed (27057) 27057 Prototype IDs (90) 1800 Alien Tech Used (10) 2000 Bonus (18579) 18579 TOTAL SCORE: 62971 Bonus ------- Triggered High Security 500 High Alert Combat Kills 6147 Follower Combat Kills 2592 Network Hubs Disabled 200 Met Zhirov 300 Met Warlord at Base 500 MAIN.C Attacked Warlord 500 Built Enhanced Grunts 300 A7 Reached Mainframe 300 Met R17 at Cetus 500 Hacked Protovariant 500 Met R17 at Research 2000 Scanned by Researcher 500 Destroyed MAIN.C Guards 500 Met MAIN.C 5000 Met Warlord at Command 2000 Friendly Fire -3760 Cogmind --------- Core Integrity 0/1600 Matter 533/550 Energy 340/350 System Corruption 45% Temperature Cool (4) Movement Core (50) Location -1/Command Parts ------- > --- POWER (3) -------- (None) > --- PROPULSION (4) --- (None) > --- UTILITY (15) ----- Advanced Target Analyzer Experimental Core Analyzer > --- WEAPON (4) ------- Plasma Lance > --- INVENTORY (4) ---- (None) Peak State ------------ > --- POWER ------------ Heavy Antimatter Reactor Light Quantum Reactor Light Quantum Reactor > --- PROPULSION ------- Biometal Heavy Treads Experimental Biometal Heavy Treads > --- UTILITY ---------- High-capacity Storage Unit High-capacity Storage Unit High-capacity Storage Unit Experimental Signal Interpreter Experimental Armor Integrity Analyzer Centrium Heavy Armor Plating Advanced Powered Armor Advanced Powered Armor Heavy Regenerative Plating EM Dispersion Field Advanced Force Field System Mapper Ghost Barrier > --- WEAPON ----------- Helical Railgun Helical Railgun Helical Railgun Helical Railgun > --- INVENTORY -------- Light Antimatter Reactor Heavy Treads Improved Heavy Treads Experimental Cooling System Advanced Energy Well High-capacity Matter Pod Experimental Sensor Array Advanced Target Analyzer Experimental Cloaking Device Experimental Weapon Shielding Advanced Focal Shield System Purifier Mobile Refinery Mk. CCLXVII Core Regenerator Subatomic Replicator Tachyon Dispersion Ray Enhanced Nova Cannon Helical Railgun Helical Railgun Helical Railgun Hypervelocity Multirail Heavy Shock Bomb Launcher Dirty Datajack Core Stripper CR-A16's Behemoth Slayer [Rating: 227] Favorites ----------- Power Light Antimatter Reactor Engine Improved Deuterium Engine Power Core Enhanced Fission Core Reactor Light Antimatter Reactor Propulsion Centrium Heavy Treads Treads Centrium Heavy Treads Wheel Armored Huge Wheel Utility High-capacity Storage Unit Device Advanced Cooling System Storage High-capacity Storage Unit Processor Experimental Signal Interpreter Hackware Ghost Barrier Protection Centrium Medium Armor Plating Weapon KE Penetrator Energy Gun Gatling Laser Energy Cannon HERF Cannon Ballistic Gun KE Penetrator Ballistic Cannon Heavy Autocannon Launcher Fusion Bomb Launcher Special Weapon Plasma Flamer Impact Weapon Heavy Flail Piercing Weapon CR-A16's Behemoth Slayer Special Melee Weapon Datajack Build | -11 -10 -10 -10 -9 -8 -8 -7 -7 -7 -7 -6 -6 -6 -6 -6 -6 -5 -5 -5 -5 -4 -4 -4 -4 -4 -3 -3 -3 -2 -2 -2 -1 -1 ------- Run | Scr Mat Min Exi Min Mat Sto Fac Low Low Zio Pro Fac Ext Cet Arc Hub Fac Upp Upp Zhi Pro Fac Upp Upp War Pro Res Tes Res Qua Sec Acc Com Slots Evolved 18 | . . . . . 4 . 2 . . . . 2 . . . . 2 . . . . 2 . . . . 2 . 2 . . 2 . Power 1 | . . . . . . . . . . . . . . . . . 1 . . . . . . . . . . . . . . . . Propulsion 2 | . . . . . 1 . . . . . . 1 . . . . . . . . . . . . . . . . . . . . . Utility 13 | . . . . . 2 . 2 . . . . 1 . . . . 1 . . . . 1 . . . . 2 . 2 . . 2 . Weapon 2 | . . . . . 1 . . . . . . . . . . . . . . . . 1 . . . . . . . . . . . Parts Attached 693 | 7 4 6 2 3 30 29 49 14 8 7 18 7 35 18 4 7 49 2 2 7 14 33 14 16 15 5 9 38 22 22 49 43 105 Power 44 | 1 1 . . . 2 . 1 1 . . . . 3 1 . . 3 . . 1 1 1 . 2 1 . 2 5 2 1 1 2 12 Engine 9 | 1 1 . . . 2 . 1 1 . . . . 2 . . . 1 . . . . . . . . . . . . . . . . Core 6 | . . . . . . . . . . . . . 1 . . . 1 . . . . . . 2 . . . 1 . . . . 1 Reactor 29 | . . . . . . . . . . . . . . 1 . . 1 . . 1 1 1 . . 1 . 2 4 2 1 1 2 11 Propulsion 62 | 2 . 1 . 1 7 7 1 . 1 . . 2 7 4 . . 1 . 1 . . 1 1 . 2 . 1 3 1 2 2 2 12 Treads 53 | 2 . . . 1 2 6 . . 1 . . 1 7 4 . . 1 . 1 . . 1 1 . 2 . 1 3 1 2 2 2 12 Leg . | . . . . . . . . . . . . . . . . . . . . . . . . . . . . . . . . . . Wheel 9 | . . 1 . . 5 1 1 . . . . 1 . . . . . . . . . . . . . . . . . . . . . Hover . | . . . . . . . . . . . . . . . . . . . . . . . . . . . . . . . . . . Flight . | . . . . . . . . . . . . . . . . . . . . . . . . . . . . . . . . . . Utility 302 | 2 . . 2 . 6 10 24 8 5 5 6 3 12 3 2 4 27 2 1 4 6 19 7 8 6 3 6 12 11 14 33 20 31 Device 168 | . . . . . . 4 10 5 3 2 3 1 4 . . 2 15 1 1 1 2 11 6 4 4 3 4 10 6 10 28 16 12 Storage 24 | 2 . . 2 . 3 1 4 . . . . . 1 . . . 2 . . 1 . 1 . . . . . . . 2 . . 5 Processor 8 | . . . . . . . 2 . . . . 1 . . . . 1 . . . . . . 1 1 . . . . . . . 2 Hackware 8 | . . . . . . . . . . . . . . . 1 . 2 . . . . . . . . . 2 1 . . . . 2 Protection 94 | . . . . . 3 5 8 3 2 3 3 1 7 3 1 2 7 1 . 2 4 7 1 3 1 . . 1 5 2 5 4 10 Artifact . | . . . . . . . . . . . . . . . . . . . . . . . . . . . . . . . . . . Weapon 285 | 2 3 5 . 2 15 12 23 5 2 2 12 2 13 10 2 3 18 . . 2 7 12 6 6 6 2 . 18 8 5 13 19 50 Energy Gun 23 | . . . . . . . 1 1 . 1 . . . 1 . . . . . . 1 3 . . . . . 3 . . . 2 10 Energy Cannon 39 | . . . . . 1 . 5 . . . 2 . . 2 . 1 2 . . . . 1 . 4 1 . . 6 . . 5 3 6 Ballistic Gun 133 | 2 3 3 . 1 12 7 12 3 1 1 6 1 6 4 2 1 10 . . 1 4 6 3 2 3 . . 3 7 3 7 8 11 Ballistic Cannon 11 | . . . . . . . . . . . . . 2 . . . 1 . . . . 1 . . 2 1 . 4 . . . . . Launcher 35 | . . 2 . 1 2 1 2 1 1 . 2 1 3 1 . . 2 . . . 2 . . . . . . 2 1 . . 4 7 Special Weapon 5 | . . . . . . . . . . . . . . . . . . . . . . . 2 . . . . . . . . . 3 Impact Weapon 11 | . . . . . . 3 2 . . . 1 . 1 1 . . . . . . . . . . . . . . . 1 . . 2 Slashing Weapon . | . . . . . . . . . . . . . . . . . . . . . . . . . . . . . . . . . . Piercing Weapon 19 | . . . . . . . . . . . . . 1 1 . 1 3 . . 1 . 1 1 . . 1 . . . 1 1 1 6 Special Melee Weapon 9 | . . . . . . 1 1 . . . 1 . . . . . . . . . . . . . . . . . . . . 1 5 Unidentified Prototypes 65 | . . . . . 2 1 2 . . 1 . . 1 5 . . 2 . . 5 . . 1 . 5 . 2 10 4 7 7 . 10 Parts Lost 103 | . . 2 . . 1 . 1 4 . . 1 . 4 1 . . 1 . . . 2 1 . 1 . . 1 14 . . 4 9 56 Power 17 | . . 1 . . 1 . . 1 . . . . . . . . . . . . . . . 1 . . 1 2 . . 1 . 9 Propulsion 17 | . . 1 . . . . . . . . . . 2 . . . . . . . . . . . . . . 2 . . . 1 11 Utility 35 | . . . . . . . 1 2 . . 1 . . . . . . . . . 1 . . . . . . 3 . . 1 5 21 Weapon 34 | . . . . . . . . 1 . . . . 2 1 . . 1 . . . 1 1 . . . . . 7 . . 2 3 15 Highest Loss Streak 29 | . . 2 . . 1 . 1 2 . . 1 . 4 1 . . 1 . . . 1 1 . 1 . . 1 4 . . 2 8 29 Average Slot Usage (%) 87 | . 100 87 85 85 98 100 94 91 92 91 92 93 98 88 86 86 87 88 88 85 87 84 83 83 87 80 80 83 89 87 78 82 81 Engine 2 | . 14 2 . . 8 9 7 6 7 7 7 6 3 . . . 1 5 5 2 . . . . . . . . . . . . . Reactor 5 | . . . . . . . . . . . . . . 1 6 6 6 . . 2 6 10 10 10 10 10 8 8 8 10 7 10 9 Treads 11 | . 28 17 14 27 13 14 9 7 7 7 7 13 23 15 13 13 11 11 11 11 11 10 10 10 10 15 13 12 12 10 8 7 11 Wheel 2 | . . 10 14 . 13 12 7 7 7 7 7 6 1 . . . . . . . . . . . . . . . . . . . . Device 7 | . . . . . . 2 4 6 6 6 1 4 . . . 3 6 10 11 7 6 11 9 11 13 14 13 10 11 10 9 9 11 Storage 17 | . 28 28 28 28 27 27 23 23 23 23 23 20 20 20 20 20 17 17 17 17 17 15 15 15 15 15 13 13 12 12 12 11 13 Processor 6 | . . . . . . . 6 7 7 7 7 13 13 13 13 13 6 5 5 5 5 5 5 6 10 10 9 9 8 8 8 7 9 Hackware 2 | . . . . . . . . . . . . . . . . . 6 5 5 5 3 . . . . . 8 10 8 8 8 6 3 Protection 7 | . . . . . 8 6 9 7 7 7 13 8 12 13 13 9 7 5 5 6 11 8 10 8 6 5 4 4 11 8 6 12 6 Ballistic Gun 15 | . 28 27 28 28 26 26 22 23 22 16 13 19 15 16 20 17 16 17 17 17 13 14 19 13 15 . . . 6 14 14 13 7 Naked Turns . | . . . . . . . . . . . . . . . . . . . . . . . . . . . . . . . . . . Heaviest Build 266 | 13 19 19 22 22 67 70 146 133 130 128 129 132 132 147 148 149 170 151 151 154 162 180 177 202 231 239 251 251 225 231 233 266 235 Greatest Support 180 | 40 40 40 10 43 28 24 28 28 28 28 28 28 120 160 160 160 160 160 160 160 160 160 160 140 140 114 124 137 138 180 180 160 165 Greatest Overweight (x) 9 | . . 1 2 2 5 5 9 4 4 4 4 4 4 2 . . 1 . . . 1 1 1 1 2 2 2 2 1 1 1 1 2 Average Overweight (x) 1 | . . . 1 . 2 3 4 4 4 4 4 4 1 . . . . . . . . 1 1 1 1 1 1 1 1 1 1 1 1 Largest Inventory Capacity 32 | 8 8 8 12 12 20 20 32 28 28 28 28 28 28 28 28 28 28 28 28 28 28 28 28 28 28 28 28 28 28 28 28 28 28 Average Capacity 26 | 6 8 8 8 12 17 20 26 28 28 28 28 28 28 28 28 28 28 28 28 28 28 28 28 28 28 28 28 28 28 28 28 28 27 Most Carried 28 | 4 8 8 9 10 20 20 26 28 28 28 28 27 28 28 28 28 28 28 28 28 28 28 28 28 28 28 28 28 28 28 28 28 28 Average Carried 25 | 2 7 7 7 9 16 19 24 27 27 27 26 25 27 27 27 28 27 28 27 27 27 27 27 27 27 26 25 27 25 26 27 26 25 Final Capacity 28 | 8 8 8 12 12 20 20 28 28 28 28 28 28 28 28 28 28 28 28 28 28 28 28 28 28 28 28 28 28 28 28 28 28 4 Final Carried 28 | 4 8 8 8 10 20 20 26 27 28 28 27 27 28 28 28 28 28 28 28 28 27 28 28 28 28 25 28 28 24 28 28 23 . Class Distribution -------------------- 15% | Hauler-Skirmisher 11% | Scavenger-Tank 10% | Hauler-Tank 7% | Hauler-Mutant 6% | Hacker-Mutant 6% | Generator-Tank 6% | Generator-Mutant 5% | Mutant 5% | Scavenger-Skirmisher 4% | Generator-Gunner 4% | Generator-Skirmisher 3% | Scavenger-Mutant Dominant Class ---------------- Mutant | -10/Materials Mutant | -10/Mines Mutant | -10/Exiles Mutant | -9/Mines Tank | -8/Materials Hauler-Tank | -8/Storage Hauler-Skirmisher | -7/Factory Hauler-Mutant | -7/Lower Caves Hauler-Skirmisher | -7/Lower Caves Hauler-Skirmisher | -7/Zion Hauler-Tank | -6/Proximity Caves Hauler-Skirmisher | -6/Factory Scavenger-Tank | -6/Extension Scavenger-Tank | -6/Cetus Scavenger-Tank | -6/Archives Scavenger-Tank | -6/Hub_04(d) Scavenger-Tank | -5/Factory Scavenger-Tank | -5/Upper Caves Scavenger-Skirmisher | -5/Upper Caves Scavenger-Tank | -5/Zhirov Scavenger-Tank | -4/Proximity Caves Hauler-Skirmisher | -4/Factory Hauler-Skirmisher | -4/Upper Caves Hauler-Skirmisher | -4/Upper Caves Generator-Skirmisher | -4/Warlord Generator-Skirmisher | -3/Proximity Caves Generator-Skirmisher | -3/Research Hacker-Mutant | -3/Testing Hacker-Mutant | -2/Research Hacker-Mutant | -2/Quarantine Generator-Tank | -2/Section 7 Generator-Tank | -1/Access Generator-Tank | -1/Command Resources | -11 -10 -10 -10 -9 -8 -8 -7 -7 -7 -7 -6 -6 -6 -6 -6 -6 -5 -5 -5 -5 -4 -4 -4 -4 -4 -3 -3 -3 -2 -2 -2 -1 -1 ----------- Run | Scr Mat Min Exi Min Mat Sto Fac Low Low Zio Pro Fac Ext Cet Arc Hub Fac Upp Upp Zhi Pro Fac Upp Upp War Pro Res Tes Res Qua Sec Acc Com Matter Collected 20671 | 219 192 285 . 80 1169 807 1013 432 134 52 307 3 586 287 136 115 1567 89 30 70 470 897 178 283 132 600 409 1999 658 235 1958 1227 4052 Remotely . | . . . . . . . . . . . . . . . . . . . . . . . . . . . . . . . . . . Salvage Created 26369 | 51 169 70 . 12 1303 924 1325 185 64 . 522 29 593 470 171 448 2494 90 . 117 785 1158 106 329 . 641 180 2681 360 332 2211 2886 5663 Parts 1191 | 3 11 12 . 5 68 68 75 11 7 . 26 5 33 19 6 22 105 6 . 1 39 61 2 14 . 4 3 116 12 . 110 140 207 Haulers Intercepted 5 | . . . . . 2 2 . . . . . . . . . . . . . . . . . . . . . . 1 . . . . Recyclers Shooed 7 | . . . . . 2 . . . . . . . . . . . 3 . . . . . . . . . . . . . . . 2 Parts Field Recycled . | . . . . . . . . . . . . . . . . . . . . . . . . . . . . . . . . . . Retrieved Matter . | . . . . . . . . . . . . . . . . . . . . . . . . . . . . . . . . . . Parts Self-Destructed 116 | . . . . . . . . 10 6 . 8 . . . . . . . . 1 48 . 1 11 30 1 . . . . . . . Prevented 26 | . . . . . . . . 4 . . 12 . . . . . . . . . . . . 8 2 . . . . . . . . Kills | -11 -10 -10 -10 -9 -8 -8 -7 -7 -7 -7 -6 -6 -6 -6 -6 -6 -5 -5 -5 -5 -4 -4 -4 -4 -4 -3 -3 -3 -2 -2 -2 -1 -1 ------- Run | Scr Mat Min Exi Min Mat Sto Fac Low Low Zio Pro Fac Ext Cet Arc Hub Fac Upp Upp Zhi Pro Fac Upp Upp War Pro Res Tes Res Qua Sec Acc Com Combat Hostiles Destroyed 400 | . 4 10 . 3 25 19 27 6 7 . 13 3 11 5 2 4 34 1 . . 18 16 1 4 . 3 2 43 3 1 26 31 78 Melee 9 | . . . . . . . . . . . . . . . . . . . . . . 2 . . . . . 1 . . . . 6 Guns 208 | . 4 6 . 1 20 18 18 4 . . 2 . 2 3 2 4 28 1 . . 8 12 1 2 . . . 8 1 . 21 16 26 Cannons 49 | . . . . . . . 3 . . . . . 1 . . . 2 . . . . 1 . 2 . 2 2 22 1 . 2 1 10 AOE 92 | . . 4 . 2 5 1 5 2 7 . 7 3 6 1 . . 3 . . . 10 . . . . . . 5 . . . 6 25 Classes Destroyed 29 | 1 1 3 . . 6 . 3 1 . . 1 . . . . 1 3 1 . . . . 1 . . . . 1 1 1 1 . 3 Worker 19 | . . . . . 1 3 1 . . . . . . . . 3 3 . . . . 1 . . . . . 1 . . 3 2 1 Builder 17 | . . . . . . . . . . . . . . . . . 5 . . . . 1 . . . . . 2 . . 1 8 . Tunneler 1 | . . . . . . . . . . . . . . . . . 1 . . . . . . . . . . . . . . . . Hauler 5 | . . . . . 2 2 . . . . . . . . . . . . . . . . . . . . . . 1 . . . . Recycler 14 | 1 . . . . 3 . 1 . . . . . 1 . . . 1 . . . . 1 . . . . 1 . . . . . 5 Minesweeper 2 | . . . . . . . . 1 . . . . . . . . . . . . . . 1 . . . . . . . . . . Mechanic 4 | . . . . . . . . . . . . . . . . 1 1 . . . . . . . . . . 1 . . . . 1 Operator 8 | . . . . . 3 . . . . . . . . . 1 1 1 . . . . . . . . . . . . . 1 . 1 Watcher 11 | . . . . . . . 3 . . . . . . 1 . 1 1 . . . . 1 . . . . . 1 . . . 2 1 Swarmer 86 | . . 8 . 3 10 6 6 3 7 . 7 3 4 2 . . . . . . 8 2 . . . . . 2 . . . 1 14 Saboteur 1 | . . . . . . . . . . . . . . . . . . . . . . . . . . . . . . . . . 1 Grunt 129 | . 4 . . . 8 6 9 2 . . 1 . . . . 3 23 . . . 8 5 . . . . . 22 . . 3 12 23 Brawler 17 | . . . . . . . 1 1 . . . . . . . . 2 . . . 1 . . . . . . 1 . . . 3 8 Duelist 7 | . . . . . 1 . . . . . . . . . . . . . . . . . . . . . . 1 . . . . 5 Protector 3 | . . . . . . . . . . . . . . . . . 1 . . . . . . . . . . 1 . . . . 1 Researcher 2 | . . . . . . . . . . . . . . . . . . . . . . . 1 . . . . 1 . . . . . Sentry 41 | . . . . . 5 7 4 . . . 1 . 4 . 2 1 4 . . . . 2 . 1 . . 2 . 1 . 6 . 1 Demolisher 1 | . . 1 . . . . . . . . . . . . . . . . . . . . . . . . . . . . . . . Hunter 33 | . . . . . 1 . 5 . . . 3 . . . . . 2 . . . . 1 . 2 . 2 . 4 . . 4 9 . Programmer 48 | . . . . . . . 2 . . . . . 1 . . . 2 . . . 1 6 1 . . . . 11 . . 8 2 14 Q-Series 5 | . . . . . . . . . . . . . . . . . . . . . . . . . . . . . . . 1 4 . Behemoth 6 | . . . . . . . . . . . 1 . 2 . . . . . . . . . . 1 . 1 . . . . 1 . . Cetus Guard 3 | . . . . . . . . . . . . . . 3 . . . . . . . . . . . . . . . . . . . S7 Guard 1 | . . . . . . . . . . . . . . . . . . . . . . . . . . . . . . . 1 . . M Guard 1 | . . . . . . . . . . . . . . . . . . . . . . . . . . . . . . . . . 1 Enhanced Grunt 1 | . . . . . . . . . . . . . . 1 . . . . . . . . . . . . . . . . . . . Combat Programmer 2 | . . . . . . . . . . . . . . . . . . . . . . . . . . . . . . . . . 2 Investigator 1 | . . . . . . . . . . . . . . . . . . . . . . . . . . . . 1 . . . . . Striker 1 | . . . . . . . . . . . . . . . . . . . . . . . . . . . . . . . . . 1 Executioner 6 | . . . . . . . . . . . . . . . . . . . . . . . . . . . . . 2 . 2 . 2 Alpha 7 3 | . . . . . . . . . . . . . . . . . . . . . . . . . . . . 1 . . . . 2 Fortress 1 | . . . . . . . . . . . . . . . . . . . . . . . . . . . . . . 1 . . . Assembled 1 | . . 1 . . . . . . . . . . . . . . . . . . . . . . . . . . . . . . . Savage 1 | . . . . . . . . . . . . . . . . 1 . . . . . . . . . . . . . . . . . Martyr 1 | . . . . . . . . . . . . . . . . . . . . . . . . . . . . . . . . . 1 Guerrilla 1 | . . . . . . . . . . . . . . . . . . . . . . . . . . . . . . . . . 1 Mutant 1 | . . . . . . . . . . . . . . . . . . 1 . . . . . . . . . . . . . . . Knight 1 | . . . . . . . . . . . . . . . . . . . . . . . . . . . . . . . . . 1 Best Kill Streak 10 | 1 2 3 . 2 9 8 6 3 7 . 6 3 5 2 1 4 8 1 . . 8 5 1 2 . 3 1 7 3 1 7 8 10 Combat Bots Only 9 | . 2 3 . 2 5 6 5 3 7 . 6 3 5 2 1 3 7 1 . . 8 4 1 2 . 3 1 4 2 1 5 8 9 Max Kills in Single Turn 6 | 1 1 2 . 2 5 2 3 1 3 . 3 2 3 2 1 5 3 1 . . 6 1 1 1 . 1 1 2 1 1 2 3 3 Gunslinging 1 | . . 1 . . . 1 . . . . . . . . . . 1 . . . . . . . . . . . . . . 1 . Exploded 6 | . . 2 . 2 4 1 3 1 3 . 3 2 3 1 . . 2 . . . 6 . . . . . . 2 . . . 2 3 Melee 1 | . . . . . . . . . . . . . . . . . . . . . . 1 . . . . . 1 . . . . 1 Uniques/NPCs Destroyed 1 | . . . . . . . . . . . . . . 1 . . . . . . . . . . . . . . . . . . . A7 (-6/Cetus) Combat | -11 -10 -10 -10 -9 -8 -8 -7 -7 -7 -7 -6 -6 -6 -6 -6 -6 -5 -5 -5 -5 -4 -4 -4 -4 -4 -3 -3 -3 -2 -2 -2 -1 -1 -------- Run | Scr Mat Min Exi Min Mat Sto Fac Low Low Zio Pro Fac Ext Cet Arc Hub Fac Upp Upp Zhi Pro Fac Upp Upp War Pro Res Tes Res Qua Sec Acc Com Damage Taken 48143 | . 139 657 . 47 1088 797 1312 753 117 . 642 110 1504 931 96 276 3472 32 . . 1591 1280 37 837 843 501 150 4851 189 97 3178 4757 17859 Core 3380 | . 16 133 . 26 149 77 88 49 25 . 18 13 112 58 . 45 197 . . . 57 23 . 25 52 12 . 174 18 . 130 108 1775 Absorbed by Shields 10306 | . . 17 . . 81 . 55 . . . . . 39 249 . . . . . . . . . . . 483 156 1780 192 97 1366 2381 3410 Reduced by Siege Mode 384 | . . . . . . . . . . . . . . . . . 193 . . . . 11 . . . . . 88 . . 39 53 . Core Remaining (%) 74 | 100 . . . 30 . 58 . . . . 74 . . . . 73 . . . . 74 . . . . 90 . 86 . . 84 . . Volleys Fired 1158 | 3 11 22 . 3 84 67 74 24 4 . 21 2 17 17 7 16 82 16 . . 29 45 26 31 2 9 13 136 33 5 107 79 173 Largest 4 | 2 2 2 . 2 3 3 3 3 1 . 3 1 3 3 3 3 3 1 . . 3 4 4 4 1 2 2 4 4 1 4 4 4 Hottest 271 | 40 46 46 . 46 75 75 81 84 39 . 133 39 110 240 100 103 103 35 . . 149 187 132 242 120 180 180 259 152 38 234 160 271 Shots Fired 2570 | 6 22 39 . 4 238 182 174 51 4 . 31 2 33 29 19 34 210 16 . . 75 121 35 48 2 18 18 252 39 5 284 201 378 Gun 1984 | 6 22 34 . 2 234 180 157 49 . . 16 . 22 19 19 27 192 16 . . 70 110 12 27 . . . 71 8 5 244 172 270 Cannon 422 | . . . . . 2 . 12 . . . 11 . 3 4 . 7 13 . . . . 11 . 21 2 18 18 174 10 . 40 10 66 Launcher 133 | . . 5 . 2 2 2 5 2 4 . 4 2 8 6 . . 5 . . . 5 . . . . . . 7 21 . . 19 34 Special 31 | . . . . . . . . . . . . . . . . . . . . . . . 23 . . . . . . . . . 8 Kinetic 1977 | 6 22 34 . 2 234 180 152 48 . . 12 . 25 18 19 27 192 16 . . 57 94 12 27 1 18 18 117 9 5 244 164 224 Thermal 190 | . . . . . . . . . . . 4 . . 3 . 7 2 . . . 13 18 23 11 1 . . 30 . . 25 10 43 Explosive 75 | . . 5 . 2 2 2 5 2 4 . 4 2 5 . . . 5 . . . 5 . . . . . . 7 . . . . 25 Electromagnetic 320 | . . . . . 2 . 17 1 . . 11 . 3 8 . . 11 . . . . 9 . 10 . . . 98 30 . 15 27 78 Robot Hit Streak 53 | 3 7 6 . 9 21 16 17 6 . . 7 . 9 12 18 15 29 29 . . 16 24 20 27 . 9 15 25 9 . 53 26 23 Robot Miss Streak 7 | 1 1 2 . . 5 4 5 7 . . 4 . 3 1 2 1 3 1 . . 1 2 3 1 . 4 1 4 1 . 4 2 2 Penetration Max 2 | . . . . . . . 1 . . . . . . 1 . 1 1 . . . 1 1 . . . . . . . . 1 2 2 Secondary Targets 43 | . . 1 . . 2 5 4 2 . . . . . 1 . . 9 . . . 3 1 . . . . . . . . 2 4 9 Max Gunslinging Chain 1 | . . 1 . . 1 1 1 1 . . . . . 1 . . 1 . . . 1 1 . . . . . . . . 1 1 1 Shots Hit Robots 1907 | 4 19 24 . 3 158 126 133 34 . . 22 . 21 22 14 23 159 14 . 1 59 88 30 28 . 21 11 176 15 1 204 155 342 Core Hits 1001 | 2 7 12 . 3 58 37 62 14 9 . 14 6 18 22 7 21 90 3 . . 43 39 7 9 . 11 5 95 5 . 88 95 219 Critical Hits 146 | . . . . . 1 . 3 1 . . . . 2 2 1 9 18 4 . . 10 7 2 2 . 2 . 7 . . 17 8 50 Critical Kills 46 | . . . . . . . 1 1 . . . . 1 2 1 1 7 1 . . 4 3 . 1 . 1 . 3 . . 5 2 12 Critical Parts Destroyed 82 | . . . . . 1 . 2 . . . . . 1 . . 7 11 3 . . 4 4 2 . . 1 . 4 . . 8 6 28 Melee Attacks 145 | . . . . . . 3 4 . . . 3 . 18 9 . 1 3 . . 1 . 1 4 . . 8 . . . 6 16 7 61 Kinetic 23 | . . . . . . . . . . . . . . . . . . . . . . . . . . . . . . 1 . . 22 Impact 27 | . . . . . . 3 3 . . . 3 . 13 5 . . . . . . . . . . . . . . . . . . . Slashing . | . . . . . . . . . . . . . . . . . . . . . . . . . . . . . . . . . . Piercing 83 | . . . . . . . . . . . . . 5 4 . 1 3 . . 1 . 1 4 . . 8 . . . 5 16 4 31 Sneak Attacks 16 | . . . . . . . 1 . . . . . . 4 . . . . . . . . 3 . . . . . . . . 3 5 Combat Hostiles 7 | . . . . . . . . . . . . . . . . . . . . . . . . . . . . . . . . 3 4 Follow-up Attacks . | . . . . . . . . . . . . . . . . . . . . . . . . . . . . . . . . . . Damage Inflicted 78173 | 34 286 700 . 355 2868 1990 3201 979 559 . 1212 201 990 1355 338 1322 5706 116 . . 2243 2582 1120 725 . 2025 871 9367 627 . 9220 7071 20110 Guns 36398 | 34 286 318 . 16 2490 1865 2216 537 . . 217 . 340 464 338 659 4517 116 . . 1227 2245 207 464 . . . 1271 215 . 5907 4028 6421 Cannons 13452 | . . . . . 26 . 285 . . . 302 . 57 52 . . 314 . . . . 284 . 261 . 763 871 6632 354 . 712 88 2451 Explosions 18549 | . . 382 . 339 352 125 700 442 559 . 693 201 558 323 . 663 784 . . . 1016 . . . . . . 1418 . . . 2903 7091 Melee 9081 | . . . . . . . . . . . . . 35 516 . . . . . . . . 631 . . 1262 . . . . 2544 . 4093 Ramming 411 | . . . . . . . . . . . . . . . . . 91 . . . . 53 . . . . . 46 58 . 57 52 54 Kinetic 42039 | 34 286 318 . 16 2490 1865 2159 527 . . 148 . 397 464 338 659 4517 116 . . 996 2015 207 464 . 763 871 4529 215 . 5907 3985 7753 Thermal 4797 | . . 31 . . 62 . 51 . . . 148 . 57 28 . . . . . . 231 272 282 . . . . 1113 . . 293 1103 1126 Explosive 14094 | . . 351 . 339 290 125 649 442 559 . 614 201 383 . . . 784 . . . 1016 . . . . . . 1418 . . . . 6923 Electromagnetic 9648 | . . . . . 26 . 342 10 . . 302 . 118 347 . 663 314 . . . . 242 . 261 . . . 2261 354 . 419 1931 2058 Impact . | . . . . . . . . . . . . . . . . . . . . . . . . . . . . . . . . . . Slashing . | . . . . . . . . . . . . . . . . . . . . . . . . . . . . . . . . . . Piercing 7184 | . . . . . . . . . . . . . 35 516 . . . . . . . . 631 . . 1262 . . . . 2544 . 2196 Highest Corruption 45 | . . . . . . . 1 1 . . . . 2 . . . 2 2 . . 3 1 1 . 8 . . 18 . . 1 3 45 Average Corruption 6 | . . . . . . . 1 1 . . . . 1 . . . 1 1 . . 2 1 1 . 4 . . 9 . . 1 1 14 Corruption Purged 57 | . . . . . . . . 1 . . . . 2 . . . . 2 . . . 3 2 . . . . 1 . . 1 . 45 Effects 326 | . . . . . . . 2 4 . . . . 4 . . . 3 3 . . 13 . 1 . 1 . . 67 . . 8 6 214 Message Errors 67 | . . . . . . . 2 3 . . . . . . . . 2 3 . . 3 . . . 1 . . 15 . . 3 1 34 Matter Fused 38 | . . . . . . . . . . . . . . . . . . . . . 2 . . . . . . 5 . . . 1 30 Heat Flow Errors 23 | . . . . . . . . . . . . . . . . . 1 . . . 1 . . . . . . 5 . . . . 16 Energy Discharges 31 | . . . . . . . . 1 . . . . . . . . . . . . 3 . 1 . . . . 6 . . 2 . 18 Parts Rejected 2 | . . . . . . . . . . . . . . . . . . . . . . . . . . . . . . . . . 2 Data Loss (minor) 27 | . . . . . . . . . . . . . 3 . . . . . . . . . . . . . . 5 . . 1 3 15 Data Loss (major) 10 | . . . . . . . . . . . . . . . . . . . . . . . . . . . . 4 . . . . 6 Misfires 6 | . . . . . . . . . . . . . . . . . . . . . . . . . . . . 3 . . . . 3 Alerts 2 | . . . . . . . . . . . . . . . . . . . . . . . . . . . . 1 . . . . 1 Misdirections 25 | . . . . . . . . . . . . . . . . . . . . . . . . . . . . 6 . . . . 19 Targeting Errors 79 | . . . . . . . . . . . . . 1 . . . . . . . 2 . . . . . . 14 . . 2 1 59 Weapon Failures 16 | . . . . . . . . . . . . . . . . . . . . . 2 . . . . . . 3 . . . . 11 Overload Shots 1 | . . . . . . . . . . . . . . 1 . . . . . . . . . . . . . . . . . . . Overflow Damage 2231 | . . 30 . 27 . . 33 65 14 . 1 . 35 8 . 36 5 . . . 36 . 210 32 . 129 119 675 9 . . 18 749 Projectiles 876 | . . . . . . . 12 . . . . . . . . . . . . . . . 35 32 . . 119 608 . . . . 70 Explosions 640 | . . 30 . 27 . . 21 65 14 . 1 . 35 . . 36 5 . . . 36 . . . . . . 67 . . . 18 285 Melee 715 | . . . . . . . . . . . . . . 8 . . . . . . . . 175 . . 129 . . 9 . . . 394 Knockbacks 45 | . . . . . . . . . . . . . . . . . . . . . . . . . . 5 1 36 1 . 1 1 . Impact 3 | . . . . . . . . . . . . . . . . . . . . . . . . . . . . . 1 . 1 1 . Kinetic 38 | . . . . . . . . . . . . . . . . . . . . . . . . . . 5 1 32 . . . . . Secondary 4 | . . . . . . . . . . . . . . . . . . . . . . . . . . . . 4 . . . . . Self-Inflicted Damage 715 | . . 21 . . 26 . 36 74 . . . . . . . 102 . . . . . . . . . . . 255 2 . . 23 176 Shots 15 | . . 1 . . 1 . 1 2 . . . . . . . 1 . . . . . . . . . . . 4 1 . . 1 3 Rammed 19 | . . . . . . . . . . . . . . . . . 4 . . . . 2 . . . . . 2 4 . 3 1 3 Targets Rammed 27 | . . . . . . . . . . . . . . . . . 7 . . . . 4 . . . . . 3 4 . 4 2 3 Kicked . | . . . . . . . . . . . . . . . . . . . . . . . . . . . . . . . . . . Crushed 8 | . . . . . . . . . . . . . . . . . 3 . . . . 2 . . . . . 1 . . 1 1 . Highest Temperature 426 | . 6 . . 4 282 177 198 279 . . 192 . 106 190 126 125 378 . . . 241 313 135 196 40 196 81 426 198 159 246 52 187 Average Temperature 80 | . 4 . . 3 80 67 50 147 . . 67 . 33 44 50 43 104 . . . 85 76 48 100 30 93 35 119 80 90 98 13 36 Received Heat Transfer 5945 | . 78 . . 6 327 207 309 297 . . 42 . 351 158 9 75 1074 . . . 387 111 . 45 102 16 14 685 8 8 164 151 1321 Effects 3 | . . . . . . . . 1 . . . . . . . . 1 . . . . . . . . . . 1 . . . . . Energy Bleed 2 | . . . . . . . . 1 . . . . . . . . . . . . . . . . . . . 1 . . . . . Interference 1 | . . . . . . . . . . . . . . . . . 1 . . . . . . . . . . . . . . . . Siege Activations 23 | . . . . . . . . . . . . . . . . 1 5 . . . . 3 . . . . 1 5 . . 3 5 . Total Turns 576 | . . . . . . . . . . . . . . . . 9 161 . . . . 59 . . . . 15 162 . . 85 85 . Longest Duration 57 | . . . . . . . . . . . . . . . . 9 57 . . . . 22 . . . . 15 54 . . 42 19 . Robots Corrupted 31 | . . . . . . . 1 . . . 3 . . 1 . . 1 . . . . 1 . . . . . 6 1 . 3 8 6 Combat Hostiles 31 | . . . . . . . 1 . . . 3 . . 1 . . 1 . . . . 1 . . . . . 6 1 . 3 8 6 Parts Fried 76 | . . . . . . . 1 . . . 7 . 2 1 . 1 4 . . . . 3 . 2 . . . 29 3 . 6 5 12 Impact Corruptions 3 | . . . . . . . . . . . . . . . . . . . . . . . . . . . . 1 1 . . . 1 Robots Melted 2 | . . . . . . . . . . . 1 . . . . . . . . . . . 1 . . . . . . . . . . Combat Hostiles 1 | . . . . . . . . . . . 1 . . . . . . . . . . . . . . . . . . . . . . Parts Melted 7 | . . . . . . . . . . . 4 . . 1 . . . . . . . 1 . . . . . . . . . 1 . Heat Transferred 5615 | . . 50 . . 50 . 50 . . . 200 . 100 100 . . . . . . 370 333 1760 . . . . 832 . . 222 855 693 Parts Sabotaged 1 | . . . . . . . . . . . . . . . . . . . . . . . . . . . . . . . . . 1 Parts Stolen . | . . . . . . . . . . . . . . . . . . . . . . . . . . . . . . . . . . Parts Stripped . | . . . . . . . . . . . . . . . . . . . . . . . . . . . . . . . . . . Power Chain Reactions 16 | . . . . . 1 . 1 . . . 1 . 3 1 . . . . . . . . . . . . . . 3 . . 6 . Missiles Intercepted . | . . . . . . . . . . . . . . . . . . . . . . . . . . . . . . . . . . Alert | -11 -10 -10 -10 -9 -8 -8 -7 -7 -7 -7 -6 -6 -6 -6 -6 -6 -5 -5 -5 -5 -4 -4 -4 -4 -4 -3 -3 -3 -2 -2 -2 -1 -1 ------- Run | Scr Mat Min Exi Min Mat Sto Fac Low Low Zio Pro Fac Ext Cet Arc Hub Fac Upp Upp Zhi Pro Fac Upp Upp War Pro Res Tes Res Qua Sec Acc Com Peak Influence 1995 | 5 186 200 . 73 453 642 686 . . . . 277 235 500 355 1043 1407 . . . . 305 . . . . 90 1083 567 181 452 932 1995 Initial 567 | . 3 10 . . . 191 69 . . . . 63 135 3 120 123 511 . . . . 113 . . . . . 27 567 181 . 74 556 Average 347 | 2 77 50 . 11 209 234 170 . . . . 133 109 123 301 481 648 . . . . 83 . . . . 23 439 421 36 194 310 993 Maximum Alert Level 5 | . . 1 . . 2 2 2 . . . . 1 1 2 1 3 4 . . . . 1 . . . . . 3 2 . 2 3 5 Low Security (%) 50 | 100 100 96 . 100 49 51 75 . . . . 76 73 85 20 26 . . . . . 93 . . . . 100 31 . 100 65 45 . Level 1 14 | . . 3 . . 37 35 8 . . . . 23 26 13 80 12 3 . . . . 6 . . . . . 26 40 . 15 29 . Level 2 17 | . . . . . 13 12 15 . . . . . . . . 28 57 . . . . . . . . . . 14 59 . 19 11 21 Level 3 13 | . . . . . . . . . . . . . . . . 31 36 . . . . . . . . . . 27 . . . 12 46 Level 4 3 | . . . . . . . . . . . . . . . . . 2 . . . . . . . . . . . . . . . 22 Level 5 . | . . . . . . . . . . . . . . . . . . . . . . . . . . . . . . . . . . High Security 1 | . . . . . . . . . . . . . . . . . . . . . . . . . . . . . . . . . 9 Max Security . | . . . . . . . . . . . . . . . . . . . . . . . . . . . . . . . . . . Squads Dispatched 106 | . 1 . . . 3 4 10 . . . . . 1 . . 5 10 . . . . 6 . . . . 6 12 1 3 8 11 25 Investigation 15 | . 1 . . . . 3 4 . . . . . 1 . . . 1 . . . . 2 . . . . . . . . 2 . 1 Extermination 29 | . . . . . . . 2 . . . . . . . . . 3 . . . . 3 . . . . . 5 . 2 4 3 7 Reinforcement 30 | . . . . . 3 . 2 . . . . . . . . 1 4 . . . . 1 . . . . 6 4 1 1 2 4 1 Assault 24 | . . . . . . . . . . . . . . . . 1 2 . . . . . . . . . . 3 . . . 2 16 Garrison 8 | . . . . . . 1 2 . . . . . . . . 3 . . . . . . . . . . . . . . . 2 . Intercept . | . . . . . . . . . . . . . . . . . . . . . . . . . . . . . . . . . . Construction Impeded 7 | . . . . . . . . . . . . . . . . 1 2 . . . . . . . . . . 2 . . . 2 . Haulers Reinforced 4 | . . . . . . . . . . . . . . . . . . . . . . 1 . . . . 1 . . . 1 1 . Stealth | -11 -10 -10 -10 -9 -8 -8 -7 -7 -7 -7 -6 -6 -6 -6 -6 -6 -5 -5 -5 -5 -4 -4 -4 -4 -4 -3 -3 -3 -2 -2 -2 -1 -1 --------- Run | Scr Mat Min Exi Min Mat Sto Fac Low Low Zio Pro Fac Ext Cet Arc Hub Fac Upp Upp Zhi Pro Fac Upp Upp War Pro Res Tes Res Qua Sec Acc Com Distress Signals 30 | . . . . . . . 1 . . . . 1 1 2 . . 1 . . . . 1 . . . . 3 1 7 . . 5 7 Communications Jammed 116 | . . . . . . . . . . . . . . . . 14 . . . . . . . . . . . 102 . . . . . Distress Signals 113 | . . . . . . . . . . . . . . . . 14 . . . . . . . . . . . 99 . . . . . Times Spotted 757 | . 8 30 . 8 41 33 51 10 3 . 18 5 28 18 6 21 56 . . . 18 25 1 8 15 3 9 72 12 2 37 56 163 Peak Tracking Total 27 | . 2 19 . 4 5 4 5 4 4 . 4 3 4 7 2 4 6 1 . . 8 5 1 2 9 3 4 6 6 1 7 11 27 Tactical Retreats 52 | . 1 3 . 3 3 2 7 2 . . 2 . 2 1 . 2 7 . . . . 2 . 2 . . . 9 . . . 1 3 Traps | -11 -10 -10 -10 -9 -8 -8 -7 -7 -7 -7 -6 -6 -6 -6 -6 -6 -5 -5 -5 -5 -4 -4 -4 -4 -4 -3 -3 -3 -2 -2 -2 -1 -1 ------- Run | Scr Mat Min Exi Min Mat Sto Fac Low Low Zio Pro Fac Ext Cet Arc Hub Fac Upp Upp Zhi Pro Fac Upp Upp War Pro Res Tes Res Qua Sec Acc Com Traps Triggered 25 | . . 1 . . 1 1 5 . . . . . . . . . . . . . . 4 . . . . . . . . 1 . 12 Indirectly . | . . . . . . . . . . . . . . . . . . . . . . . . . . . . . . . . . . Trap Hack Attempts 49 | . . . . . . 49 . . . . . . . . . . . . . . . . . . . . . . . . . . . Triggered 1 | . . . . . . 1 . . . . . . . . . . . . . . . . . . . . . . . . . . . Disarmed 14 | . . . . . . 6 . . . . . . . . . . . . . . . . . . . . . . . . 8 . . Reprogrammed 34 | . . . . . . 3 . . . . . . 4 . . 12 1 . . . . . . . . . . 4 . 4 . . 6 Reused 13 | . . . . . . 3 . 1 . . 3 . 1 . . 1 . . . . . . . 1 . 2 . . . . . . 1 Traps Extracted 2 | . . . . . . . . 1 . . 1 . . . . . . . . . . . . . . . . . . . . . . Installed 16 | . . 1 . . 1 . 1 1 . . 4 . . . . . . . . . . . . 6 . 2 . . . . . . . Triggered 28 | . . . . . . 3 . 4 . . 3 . 1 . . 1 . . . . . 1 . 1 10 2 . 1 . . . . 1 Machines | -11 -10 -10 -10 -9 -8 -8 -7 -7 -7 -7 -6 -6 -6 -6 -6 -6 -5 -5 -5 -5 -4 -4 -4 -4 -4 -3 -3 -3 -2 -2 -2 -1 -1 ---------- Run | Scr Mat Min Exi Min Mat Sto Fac Low Low Zio Pro Fac Ext Cet Arc Hub Fac Upp Upp Zhi Pro Fac Upp Upp War Pro Res Tes Res Qua Sec Acc Com Machines Disabled 94 | . . 4 . . 1 2 4 . . . . 1 4 2 4 16 6 1 . . . 2 . . 1 . . 13 4 4 15 5 5 Max in Single Turn 12 | . . 1 . . 1 1 1 . . . . 1 2 1 1 12 1 1 . . . 1 . . 1 . . 2 1 1 1 1 2 Garrison Access 9 | . . . . . . 1 2 . . . . . . . . . 2 . . . . . . . . . . 1 . 1 1 1 . Network Hub 1 | . . . . . . . . . . . . . . . . 1 . . . . . . . . . . . . . . . . . Machines Sabotaged . | . . . . . . . . . . . . . . . . . . . . . . . . . . . . . . . . . . Garrisons Compromised 1 | . . . . . . . . . . . . . . . . . 1 . . . . . . . . . . . . . . . . Overloaded Fab Kills . | . . . . . . . . . . . . . . . . . . . . . . . . . . . . . . . . . . Fab Network Shutdowns 1 | . . . . . . . . . . . . . . . . . 1 . . . . . . . . . . . . . . . . Hacking | -11 -10 -10 -10 -9 -8 -8 -7 -7 -7 -7 -6 -6 -6 -6 -6 -6 -5 -5 -5 -5 -4 -4 -4 -4 -4 -3 -3 -3 -2 -2 -2 -1 -1 --------- Run | Scr Mat Min Exi Min Mat Sto Fac Low Low Zio Pro Fac Ext Cet Arc Hub Fac Upp Upp Zhi Pro Fac Upp Upp War Pro Res Tes Res Qua Sec Acc Com Machines Accessed 150 | . 5 1 1 . 10 18 13 1 . 1 1 4 7 2 . 5 15 1 1 4 . 8 1 . 3 . 2 9 2 13 13 2 7 Terminals 95 | . 4 1 . . 6 15 7 1 . . 1 3 7 2 . 5 5 . . . . 4 . . . . 1 4 2 9 10 1 7 Fabricators 9 | . . . . . . . 2 . . . . . . . . . 3 . . . . 2 . . . . . 2 . . . . . Repair Stations 11 | . . . . . 1 1 1 . . . . 1 . . . . 2 . . . . 1 . . . . 1 1 . 1 1 . . Recycling Units 4 | . 1 . . . 1 1 . . . . . . . . . . . . . . . 1 . . . . . . . . . . . Scanalyzers 10 | . . . . . 1 . 1 . . . . . . . . . 3 . . . . . . . . . . 1 . 2 1 1 . Garrison Access 9 | . . . . . 1 1 2 . . . . . . . . . 2 . . . . . . . . . . 1 . 1 1 . . Total Hacks 600 | . 15 3 1 . 21 63 31 3 . 3 3 15 26 10 . 21 76 1 1 17 . 27 1 . 6 . 15 38 19 63 74 10 37 Successful 294 | . 7 2 1 . 13 28 16 1 . 3 1 7 15 4 . 11 38 1 1 17 . 11 1 . 6 . 4 23 3 29 37 3 11 Failed 305 | . 7 1 . . 8 35 15 2 . . 2 8 11 6 . 10 38 . . . . 16 . . . . 11 15 16 34 37 7 26 Catastrophic 66 | . . . . . 2 8 2 . . . 2 1 4 2 . 1 10 . . . . 6 . . . . 3 1 4 4 6 1 9 Database Lockouts 1 | . 1 . . . . . . . . . . . . . . . . . . . . . . . . . . . . . . . . Manual 317 | . 10 3 . . 16 42 17 3 . . 3 10 9 10 . 17 25 . . . . 13 . . . . 7 15 12 37 37 8 23 Terminals 423 | . 11 3 . . 15 54 19 3 . . 3 13 26 10 . 21 30 . . . . 11 . . . . 10 19 19 49 61 9 37 Fabricators 40 | . . . . . . . 5 . . . . . . . . . 18 . . . . 8 . . . . . 9 . . . . . Repair Stations 43 | . . . . . 2 2 2 . . . . 2 . . . . 5 . . . . 5 . . . . 5 6 . 5 9 . . Recycling Units 9 | . 4 . . . 1 1 . . . . . . . . . . . . . . . 3 . . . . . . . . . . . Scanalyzers 35 | . . . . . 2 . 2 . . . . . . . . . 19 . . . . . . . . . . 3 . 7 1 1 . Garrison Access 20 | . . . . . 1 6 3 . . . . . . . . . 4 . . . . . . . . . . 1 . 2 3 . . Terminal Hacks 162 | . 5 2 1 . 5 14 5 1 . 3 1 3 11 2 . 6 11 1 1 17 . 1 1 . 6 . 1 8 3 18 24 2 9 Record 11 | . . . 1 . . . . . . . . . . . . . . . . 5 . . . . 5 . . . . . . . . Part Schematic 11 | . 1 . . . . . . . . 3 1 . . . . . 1 . . 4 . . . . . . . 1 . . . . . Robot Schematic 4 | . . 1 . . 1 . 1 1 . . . . . . . . . . . . . . . . . . . . . . . . . Robot Analysis 18 | . 2 . . . . . . . . . . 2 1 . . 2 . . . 4 . . . . . . . 1 . 4 1 . 1 Prototype ID Bank 9 | . 1 . . . . 1 . . . . . . . . . . 1 . . 4 . . . . . . . . . 1 1 . . Open Door 16 | . . . . . . 6 . . . . . . 3 . . . . 1 1 . . . 1 . 1 . . . . . 2 . 1 Level Access Points 3 | . . . . . . . . . . . . . . . . . . . . . . . . . . . . 1 . . 1 . 1 Branch Access Points 8 | . . . . . 1 . 1 . . . . 1 . . . . 1 . . . . 1 . . . . 1 . 1 . . 1 . Machine Index 2 | . . . . . . . . . . . . . . . . . . . . . . . . . . . . . . 1 . . 1 Terminal Index 2 | . . . . . . . . . . . . . . . . . 1 . . . . . . . . . . . . . 1 . . Fabricator Index 2 | . . . . . . . 1 . . . . . . . . . 1 . . . . . . . . . . . . . . . . Scanalyzer Index 2 | . . . . . . . . . . . . . . . . . 1 . . . . . . . . . . . . . 1 . . Garrison Index 1 | . . . . . . . . . . . . . . . . . . . . . . . . . . . . . . . 1 . . Alert Level 1 | . . . . . . . . . . . . . . . . . . . . . . . . . . . . . . 1 . . . Unreport Threat 25 | . . 1 . . 2 4 . . . . . . 4 2 . . 1 . . . . . . . . . . . 1 3 5 1 1 Locate Traps 9 | . . . . . . 1 . . . . . . 1 . . 1 2 . . . . . . . . . . . . 1 3 . . Disarm Traps 2 | . . . . . . . . . . . . . . . . . . . . . . . . . . . . . . . 2 . . Reprogram Traps 8 | . . . . . . . . . . . . . 1 . . 2 1 . . . . . . . . . . 2 . 1 . . 1 Extermination Status 1 | . . . . . . . . . . . . . . . . . . . . . . . . . . . . . . 1 . . . Recall Investigation 1 | . . . . . . . 1 . . . . . . . . . . . . . . . . . . . . . . . . . . Recall Extermination 4 | . . . . . . . . . . . . . . . . . 1 . . . . . . . . . . . . 1 1 . 1 Recall Reinforcements 2 | . . . . . . . . . . . . . . . . . . . . . . . . . . . . . . 1 1 . . Hauler Manifests 1 | . . . . . 1 . . . . . . . . . . . . . . . . . . . . . . . . . . . . Registered Components 1 | . . . . . . . . . . . . . . . . . . . . . . . . . . . . . . . . . 1 Zone Layout 15 | . 1 . . . . 2 1 . . . . . 1 . . 1 . . . . . . . . . . . 1 1 3 4 . . Protovariant Controls 2 | . . . . . . . . . . . . . . . . . . . . . . . . . . . . 2 . . . . . Disengage Seal 1 | . . . . . . . . . . . . . . . . . . . . . . . . . . . . . . . . . 1 Fabricator Hacks 19 | . . . . . . . 2 . . . . . . . . . 9 . . . . 4 . . . . . 4 . . . . . Load Schematic 9 | . . . . . . . 1 . . . . . . . . . 4 . . . . 2 . . . . . 2 . . . . . Build 10 | . . . . . . . 1 . . . . . . . . . 5 . . . . 2 . . . . . 2 . . . . . Repair Station Hacks 22 | . . . . . 2 1 2 . . . . 2 . . . . 4 . . . . 1 . . . . 2 2 . 1 5 . . Scan Component 13 | . . . . . 1 1 1 . . . . 1 . . . . 2 . . . . 1 . . . . 1 1 . 1 3 . . Repair 9 | . . . . . 1 . 1 . . . . 1 . . . . 2 . . . . . . . . . 1 1 . . 2 . . Recycling Unit Hacks 4 | . 1 . . . 1 . . . . . . . . . . . . . . . . 2 . . . . . . . . . . . Report Inventory 1 | . . . . . . . . . . . . . . . . . . . . . . 1 . . . . . . . . . . . Retrieve Components 3 | . 1 . . . 1 . . . . . . . . . . . . . . . . 1 . . . . . . . . . . . Scanalyzer 22 | . . . . . 2 . 2 . . . . . . . . . 9 . . . . . . . . . . 1 . 6 1 1 . Insert Component 16 | . . . . . 1 . 1 . . . . . . . . . 5 . . . . . . . . . . 1 . 6 1 1 . Analyze 6 | . . . . . 1 . 1 . . . . . . . . . 4 . . . . . . . . . . . . . . . . Garrison Access Hacks 7 | . . . . . . . 2 . . . . . . . . . 2 . . . . . . . . . . 1 . 1 1 . . Seal Access 7 | . . . . . . . 2 . . . . . . . . . 2 . . . . . . . . . . 1 . 1 1 . . Unauthorized Hacks 58 | . 1 . . . 3 13 3 . . . . 2 4 2 . 5 3 . . . . 3 . . . . 1 7 . 3 6 . 2 Terminals 46 | . . . . . 2 11 2 . . . . 2 4 2 . 5 2 . . . . 1 . . . . 1 3 . 3 6 . 2 Track 17 | . . . . . 1 6 . . . . . . 2 1 . 3 . . . . . . . . . . . 1 . 1 2 . . Assimilate 2 | . . . . . . 1 1 . . . . . . . . . . . . . . . . . . . . . . . . . . Botnet 22 | . . . . . 1 2 1 . . . . 2 2 1 . 2 2 . . . . 1 . . . . 1 1 . 2 2 . 2 Disrupt 4 | . . . . . . 2 . . . . . . . . . . . . . . . . . . . . . 1 . . 1 . . Operators 1 | . . . . . . . . . . . . . . . . . . . . . . . . . . . . . . . 1 . . Fabricators 6 | . . . . . . . . . . . . . . . . . 1 . . . . 2 . . . . . 3 . . . . . Prioritize 2 | . . . . . . . . . . . . . . . . . . . . . . . . . . . . 2 . . . . . Siphon 3 | . . . . . . . . . . . . . . . . . 1 . . . . 1 . . . . . 1 . . . . . Download 1 | . . . . . . . . . . . . . . . . . . . . . . 1 . . . . . . . . . . . Repair Stations . | . . . . . . . . . . . . . . . . . . . . . . . . . . . . . . . . . . Recycling Units 1 | . 1 . . . . . . . . . . . . . . . . . . . . . . . . . . . . . . . . Tunnel 1 | . 1 . . . . . . . . . . . . . . . . . . . . . . . . . . . . . . . . Scanalyzers 1 | . . . . . . . . . . . . . . . . . . . . . . . . . . . . 1 . . . . . Researchers 1 | . . . . . . . . . . . . . . . . . . . . . . . . . . . . 1 . . . . . Garrison Access 4 | . . . . . 1 2 1 . . . . . . . . . . . . . . . . . . . . . . . . . . Reprogram 3 | . . . . . 1 1 1 . . . . . . . . . . . . . . . . . . . . . . . . . . Jam 1 | . . . . . . 1 . . . . . . . . . . . . . . . . . . . . . . . . . . . Data Cores Recovered 3 | . . . . . . . . . . . . . . . . 1 1 . . . . . . . . . . . . . 1 . . Used 1 | . . . . . . . . . . . . . . . . 1 . . . . . . . . . . . . . . . . . Hacking Detections 115 | . 5 . . . 9 16 11 1 . . 1 4 7 3 . 5 11 . . . . 8 . . . . 2 6 2 8 9 1 6 Full Trace Events 9 | . . . . . . 2 2 1 . . . . 1 . . . 1 . . . . 1 . . . . . . . . 1 . . Feedback Events . | . . . . . . . . . . . . . . . . . . . . . . . . . . . . . . . . . . Feedback Blocked . | . . . . . . . . . . . . . . . . . . . . . . . . . . . . . . . . . . Robot Schematics Acquired 4 | . . 1 . . 1 . 1 1 . . . . . . . . . . . . . . . . . . . . . . . . . Robots Built 6 | . . . . . . . . . . . . . . . . . 6 . . . . . . . . . . . . . . . . Matter 378 | . . . . . . . . . . . . . . . . . 378 . . . . . . . . . . . . . . . . Time 268 | . . . . . . . . . . . . . . . . . 268 . . . . . . . . . . . . . . . . Total Robot Build Rating 24 | . . . . . . . . . . . . . . . . . 24 . . . . . . . . . . . . . . . . Part Schematics Acquired 16 | . 1 . . . 1 . 1 . . 3 1 . . . . . 3 . . 4 . 1 . . . . . 1 . . . . . Parts Built 8 | . . . . . . . 1 . . . . . . . . . 3 . . . . 2 . . . . . 2 . . . . . Matter 1608 | . . . . . . . 168 . . . . . . . . . 489 . . . . 354 . . . . . 597 . . . . . Time 491 | . . . . . . . 84 . . . . . . . . . 126 . . . . 94 . . . . . 187 . . . . . Total Part Build Rating 35 | . . . . . . . 4 . . . . . . . . . 7 . . . . 10 . . . . . 14 . . . . . Parts Repaired 9 | . . . . . 1 . 1 . . . . 1 . . . . 2 . . . . . . . . . 1 1 . . 2 . . Time 463 | . . . . . 26 . 38 . . . . 14 . . . . 207 . . . . . . . . . 36 34 . . 108 . . Parts Recycled . | . . . . . . . . . . . . . . . . . . . . . . . . . . . . . . . . . . Recycled Matter . | . . . . . . . . . . . . . . . . . . . . . . . . . . . . . . . . . . Retrieved Matter . | . . . . . . . . . . . . . . . . . . . . . . . . . . . . . . . . . . Retrieved Components 11 | . 1 . . . 9 . . . . . . . . . . . . . . . . 1 . . . . . . . . . . . Parts Scanalyzed 4 | . . . . . 1 . 1 . . . . . . . . . 2 . . . . . . . . . . . . . . . . Part Schematics Acquired 4 | . . . . . 1 . 1 . . . . . . . . . 2 . . . . . . . . . . . . . . . . Parts Damaged . | . . . . . . . . . . . . . . . . . . . . . . . . . . . . . . . . . . Bothacking | -11 -10 -10 -10 -9 -8 -8 -7 -7 -7 -7 -6 -6 -6 -6 -6 -6 -5 -5 -5 -5 -4 -4 -4 -4 -4 -3 -3 -3 -2 -2 -2 -1 -1 ------------ Run | Scr Mat Min Exi Min Mat Sto Fac Low Low Zio Pro Fac Ext Cet Arc Hub Fac Upp Upp Zhi Pro Fac Upp Upp War Pro Res Tes Res Qua Sec Acc Com Used RIF Installer . | . . . . . . . . . . . . . . . . . . . . . . . . . . . . . . . . . . Robots Hacked 2 | . . . . . . . 1 . . . . . . . . . . . . . . . . . . . . . . . . . 1 Non-combat 1 | . . . . . . . 1 . . . . . . . . . . . . . . . . . . . . . . . . . . Combat 1 | . . . . . . . . . . . . . . . . . . . . . . . . . . . . . . . . . 1 Robot Hacks Applied 2 | . . . . . . . 1 . . . . . . . . . . . . . . . . . . . . . . . . . 1 parse_system 1 | . . . . . . . . . . . . . . . . . . . . . . . . . . . . . . . . . 1 find_chute 1 | . . . . . . . 1 . . . . . . . . . . . . . . . . . . . . . . . . . . Relay Couplers Released 3 | . . . . . . . . . . . . . . . . . 2 . . . . . . . . . . . . . . 1 . Machine Destruction 3 | . . . . . . . . . . . . . . . . . 2 . . . . . . . . . . . . . . 1 . Robots Rewired 22 | . . . . . . . . . . . . . 10 . . . . 3 . . . . 1 . . . . . . . . 1 7 Allies Hacked 2 | . . . . . . . . . . . . . . . . . 1 . . . . . . . . . . . . . . . 1 Hacks Repelled 2 | . . . . . . . . . . . . . . . . . . . . . . . . . . . . . . . . . 2 Allies | -11 -10 -10 -10 -9 -8 -8 -7 -7 -7 -7 -6 -6 -6 -6 -6 -6 -5 -5 -5 -5 -4 -4 -4 -4 -4 -3 -3 -3 -2 -2 -2 -1 -1 -------- Run | Scr Mat Min Exi Min Mat Sto Fac Low Low Zio Pro Fac Ext Cet Arc Hub Fac Upp Upp Zhi Pro Fac Upp Upp War Pro Res Tes Res Qua Sec Acc Com Total Allies 50 | . . . . 3 2 1 3 . . . . . 15 5 . . 6 3 . . . . 1 . . . 3 . . . . 1 7 Largest Group 9 | . . . . 3 5 1 2 . . . . . 8 9 5 4 6 9 5 5 5 . 1 1 . . 3 . . . . 1 4 Highest-Rated Group 708 | . . . . 40 72 15 42 . . . . . 350 708 396 295 180 269 151 151 151 . 31 31 . . 138 . . . . 222 690 Highest-Rated Ally 222 | . . . . 16 16 15 21 . . . . . 156 156 94 94 82 31 31 31 31 . 31 31 . . 46 . . . . 222 222 Total Orders 33 | . . . . . . . 6 . . . . . . . . 3 9 2 . 2 . . . 3 . . . . . . . . 8 STAY 18 | . . . . . . . 3 . . . . . . . . 2 7 1 . 1 . . . 1 . . . . . . . . 3 FOLLOW 10 | . . . . . . . 3 . . . . . . . . 1 2 1 . 1 . . . 1 . . . . . . . . 1 AID 4 | . . . . . . . . . . . . . . . . . . . . . . . . . . . . . . . . . 4 DROP 1 | . . . . . . . . . . . . . . . . . . . . . . . . 1 . . . . . . . . . Ally Attacks 424 | . . . . 2 38 8 15 . . . . . 82 107 21 72 13 . . . 35 . . . . . . . . . . 10 21 Total Damage 14205 | . . . . 10 364 165 366 . . . . . 1860 3360 761 2612 639 . . . 852 . . . . . . . . . . 689 2527 Kills 71 | . . . . . 3 2 3 . . . . . 16 17 2 13 2 . . . 3 . . . . . . . . . . 4 6 Allies Corrupted 4 | . . . . . . . . . . . . . . . . . . 1 . . 2 . . . . . . . . . . 1 . Allies Melted . | . . . . . . . . . . . . . . . . . . . . . . . . . . . . . . . . . . Intel | -11 -10 -10 -10 -9 -8 -8 -7 -7 -7 -7 -6 -6 -6 -6 -6 -6 -5 -5 -5 -5 -4 -4 -4 -4 -4 -3 -3 -3 -2 -2 -2 -1 -1 ------- Run | Scr Mat Min Exi Min Mat Sto Fac Low Low Zio Pro Fac Ext Cet Arc Hub Fac Upp Upp Zhi Pro Fac Upp Upp War Pro Res Tes Res Qua Sec Acc Com Robot Analysis Total 17 | . 2 . . . . . . . . . . 2 1 . . 2 . . . 4 . . . . . . . 1 . 3 1 . 1 Derelict Logs Recovered 17 | . . 2 . 2 . . . 3 1 1 1 . . . . . . 1 1 . 3 . 1 1 . . . . . . . . . Drone Launches 2 | . . . . . . . . . . . . . . . . . . . . . . . . . . . . . . . . . 2 Drone Recoveries . | . . . . . . . . . . . . . . . . . . . . . . . . . . . . . . . . . . Decoded 0b10 Intel 32 | . . . . . . . . . . . . . 12 2 1 9 8 . . . . . . . . . . . . . . . . Traps 19 | . . . . . . . . . . . . . 8 . . 3 8 . . . . . . . . . . . . . . . . Emergency Access 8 | . . . . . . . . . . . . . 2 . . 6 . . . . . . . . . . . . . . . . . Exits 5 | . . . . . . . . . . . . . 2 2 1 . . . . . . . . . . . . . . . . . . Exploration | -11 -10 -10 -10 -9 -8 -8 -7 -7 -7 -7 -6 -6 -6 -6 -6 -6 -5 -5 -5 -5 -4 -4 -4 -4 -4 -3 -3 -3 -2 -2 -2 -1 -1 ------------- Run | Scr Mat Min Exi Min Mat Sto Fac Low Low Zio Pro Fac Ext Cet Arc Hub Fac Upp Upp Zhi Pro Fac Upp Upp War Pro Res Tes Res Qua Sec Acc Com Turns Passed 40477 | 112 483 780 201 821 1332 1567 2335 1119 677 1094 901 343 1853 431 140 582 2849 900 688 272 859 1557 2735 1938 1099 640 689 2113 859 1392 2319 1170 3627 Spaces Moved 19514 | 55 253 646 213 512 766 783 1209 627 466 766 530 225 837 196 65 242 1233 464 424 157 451 685 927 911 557 270 309 813 416 601 1005 457 1443 Core 11 | 4 . . . . . . . . . . . . . . . . . . . . . . . . . . . . . . . . 7 Treads 13159 | 51 253 94 . 491 . . . . . . . . 651 196 65 242 1233 464 424 157 451 685 927 911 557 270 309 813 416 601 1005 457 1436 Legs . | . . . . . . . . . . . . . . . . . . . . . . . . . . . . . . . . . . Wheels 6344 | . . 552 213 21 766 783 1209 627 466 766 530 225 186 . . . . . . . . . . . . . . . . . . . . Hover . | . . . . . . . . . . . . . . . . . . . . . . . . . . . . . . . . . . Flight . | . . . . . . . . . . . . . . . . . . . . . . . . . . . . . . . . . . Fastest Speed 50 | 50 160 90 90 100 105 110 130 140 140 140 140 140 140 160 160 160 160 160 160 160 160 180 180 185 185 190 186 178 175 175 160 160 50 Average Speed 161 | 152 160 100 92 157 118 127 146 140 140 140 140 140 173 162 160 160 171 160 160 160 160 180 183 185 188 209 193 188 176 175 168 164 188 Slowest Speed 225 | 160 160 160 100 160 130 140 180 140 140 140 140 140 225 200 160 160 180 160 160 160 180 180 185 185 210 210 210 206 178 180 180 185 210 Overloaded Moves . | . . . . . . . . . . . . . . . . . . . . . . . . . . . . . . . . . . Propulsion Burnouts . | . . . . . . . . . . . . . . . . . . . . . . . . . . . . . . . . . . Robots Hopped . | . . . . . . . . . . . . . . . . . . . . . . . . . . . . . . . . . . Cave-ins Triggered . | . . . . . . . . . . . . . . . . . . . . . . . . . . . . . . . . . . Teleports 1 | . . . . . . . . . . . . . . . . . . . . . . . . . . . . . . . 1 . . Exploration Rate (%) 55 | 4 52 96 60 99 59 89 33 57 62 78 78 8 86 67 76 26 40 56 55 60 62 20 90 75 82 47 12 80 13 66 60 14 41 Regions Visited 33 Branch Regions 24 Pre-discovered Areas 14 | . 1 . 1 1 . . . 1 . 1 . . . . . . . 1 . 3 1 . . 1 3 . . . . . . . . Known Exits Taken 28 | . . . . . 1 1 1 1 1 1 1 1 1 1 1 1 1 1 1 1 1 1 1 1 1 1 1 1 1 1 1 1 . Unknown Exits Taken 5 | 1 1 1 1 1 . . . . . . . . . . . . . . . . . . . . . . . . . . . . . Scrap Searched 26 | . . 1 . 2 . . . 4 3 2 2 . . . . . . 2 2 . 4 . 1 2 . 1 . . . . . . . Spaces Dug 120 | . . . . . . 3 3 15 8 . 7 . . . . 7 23 . . . . 1 1 10 1 . 6 3 1 2 17 7 5 Terrain Destroyed 1095 | . . 39 . 13 12 29 30 27 32 . 34 15 71 7 4 171 69 . . . 78 13 3 11 1 6 6 100 8 3 85 43 185 Melee 23 | . . . . . . 3 3 . . . 3 . . . . 1 3 . . . . 1 1 . . . . . . 2 . 4 2 Projectile 290 | . . . . . . . . 1 . . 2 . 2 . 4 17 26 . . . 6 12 2 11 1 6 6 17 4 1 85 26 61 AOE 782 | . . 39 . 13 12 26 27 26 32 . 29 15 69 7 . 153 40 . . . 72 . . . . . . 83 4 . . 13 122 Terrain Rammed . | . . . . . . . . . . . . . . . . . . . . . . . . . . . . . . . . . . Walls Destroyed . | . . . . . . . . . . . . . . . . . . . . . . . . . . . . . . . . . . Machines Disabled . | . . . . . . . . . . . . . . . . . . . . . . . . . . . . . . . . . . Actions | -11 -10 -10 -10 -9 -8 -8 -7 -7 -7 -7 -6 -6 -6 -6 -6 -6 -5 -5 -5 -5 -4 -4 -4 -4 -4 -3 -3 -3 -2 -2 -2 -1 -1 --------- Run | Scr Mat Min Exi Min Mat Sto Fac Low Low Zio Pro Fac Ext Cet Arc Hub Fac Upp Upp Zhi Pro Fac Upp Upp War Pro Res Tes Res Qua Sec Acc Com Total 26216 | 75 313 743 218 522 1069 1269 1644 818 483 790 650 249 1172 274 89 403 1780 605 434 177 526 918 1913 1114 608 317 383 1156 503 929 1384 714 1974 Wait 3850 | 7 26 55 . 3 140 322 250 145 1 1 64 13 168 . 5 138 381 73 6 . 25 120 930 144 10 17 42 125 2 251 171 117 98 Move 19482 | 54 252 645 212 511 765 782 1208 626 465 765 529 224 836 195 64 241 1232 463 423 156 450 684 926 910 556 269 308 812 415 600 1005 456 1443 Hop . | . . . . . . . . . . . . . . . . . . . . . . . . . . . . . . . . . . Pick Up 225 | 4 11 4 1 1 25 4 18 6 3 6 4 3 7 9 3 . 10 . 2 3 2 10 4 4 5 1 6 17 7 14 10 3 18 Fast Attach 190 | 7 . . . 1 8 3 8 . . 4 2 . 13 9 3 . 7 . . 5 3 7 2 2 8 . 3 18 10 10 17 5 35 Attach 120 | . . 1 . . 4 . 3 4 . . 1 3 3 1 . . 5 . 1 1 2 5 1 2 1 2 4 7 6 4 5 8 46 Detach 78 | . . . . 1 . . 5 . . . . . 1 4 1 . 3 . . 3 1 4 . . 6 2 3 3 4 3 1 3 30 Swap 395 | . 4 5 2 2 18 26 38 10 8 3 15 4 19 8 1 7 37 2 1 2 9 21 12 12 6 3 2 13 6 8 35 30 26 Drop 312 | . 9 3 3 . 24 13 20 2 2 11 7 . 18 22 5 . 13 . 1 6 5 17 4 3 14 4 2 22 16 28 14 4 20 Fire 1158 | 3 11 22 . 3 84 67 74 24 4 . 21 2 17 17 7 16 82 16 . . 29 45 26 31 2 9 13 136 33 5 107 79 173 Melee 145 | . . . . . . 3 4 . . . 3 . 18 9 . 1 3 . . 1 . 1 4 . . 8 . . . 6 16 7 61 Ram 3 | . . . . . . . . . . . . . . . . . . . . . . . . . . . . . . . . . 3 Kick . | . . . . . . . . . . . . . . . . . . . . . . . . . . . . . . . . . . Crush 24 | . . . . . . . . . . . . . . . . . 7 . . . . 4 . . . . . 3 4 . 3 2 1 Escape Stasis 42 | . . 7 . . . . 15 . . . . . . . . . . . . . . . . . . . . . . . . . 20 Rewire 127 | . . . . . . . . . . . . . 72 . . . . 51 . . . . 4 . . . . . . . . . . Trap 65 | . . 1 . . 1 49 1 1 . . 4 . . . . . . . . . . . . 6 . 2 . . . . . . . Miscellaneous . | . . . . . . . . . . . . . . . . . . . . . . . . . . . . . . . . . . Route ------- -11/Scrapyard -10/Materials (discovered 3 exits: [*Mat] / *Min x2) -10/Mines (discovered 3 exits: [*Mat x2] / *Exi) -10/Exiles -9/Mines (discovered 2 exits: *Mat x2) -8/Materials (discovered 3 exits: *Fac x2 / *Sto) -8/Storage -7/Factory (discovered 3 exits: *Fac / *Low x2) -7/Lower Caves -7/Lower Caves (discovered 2 exits: *Fac / *Zio) -7/Zion -6/Proximity Caves -6/Factory (discovered 5 exits: Fac / Low x2 / *Ext x2) -6/Extension (discovered 3 exits: *Fac x2 / *Cet) -6/Cetus (discovered 2 exits: *Fac / *Arc) -6/Archives (discovered 3 exits: *Fac / *Hub x2) -6/Hub_04(d) -5/Factory (discovered 3 exits: *Fac / *Upp x2) -5/Upper Caves -5/Upper Caves -5/Zhirov -4/Proximity Caves -4/Factory (discovered 4 exits: *Res x2 / *Upp x2) -4/Upper Caves -4/Upper Caves -4/Warlord -3/Proximity Caves -3/Research (discovered 3 exits: Arm / *Tes x2) -3/Testing -2/Research (discovered 2 exits: *Qua x2) -2/Quarantine -2/Section 7 -1/Access -1/Command (discovered 2 exits: *Sur x2) History --------- Turn | Location | Event 3 | -11/Scrapyard | Discovered new exit (range 16) 113 | -11/Scrapyard | Entered Materials 229 | -10/Materials | Discovered new exit (range 12) 322 | -10/Materials | Build established: Mutant 410 | -10/Materials | Discovered new exit (range 3) 507 | -10/Materials | Central database locked down 507 | -10/Materials | Discovered new exit (range 15) 596 | -10/Materials | Entered Mines 628 | -10/Mines | Met a Derelict bent on vengeance 702 | -10/Mines | Discovered new exit (range 6) 725 | -10/Mines | Assembled infested the area 730 | -10/Mines | Assisted by a Guerilla fighting off Assembled 834 | -10/Mines | Core integrity fell below 50% 954 | -10/Mines | Found a hidden stash of uninstalled traps 1019 | -10/Mines | Learned location of 1 exit from Materials 1102 | -10/Mines | Discovered new exit (range 11) 1205 | -10/Mines | Received a Rocket Launcher from a helpful Derelict 1299 | -10/Mines | Learned location of 1 exit from Materials 1372 | -10/Mines | Deemed a non-threat by the Exiles lab entrance 1372 | -10/Mines | Discovered new exit (range 5) 1376 | -10/Mines | Entered Exiles 1399 | -10/Exiles | Met 8R-AWN 1413 | -10/Exiles | Met EX-HEX 1454 | -10/Exiles | Met EX-DEC 1476 | -10/Exiles | Met EX-BIN 1492 | -10/Exiles | Learned location of Zion (-7) 1551 | -10/Exiles | Discovered new exit (range 14) 1577 | -10/Exiles | Entered Mines 1595 | -9/Mines | Learned Materials interactive machine intel 1673 | -9/Mines | Discovered new exit (range 5) 1867 | -9/Mines | Assisted by bots powering up and referring to "LRC-V3" 1980 | -9/Mines | Discovered new exit (range 5) 2398 | -9/Mines | Entered Materials 2398 | -8/Materials | Accompanied by 3 allies 2398 | -8/Materials | Evolved 4 slots: Propulsion x1, Utility x2, Weapon x1 2399 | -8/Materials | Identified exit to Factory 2400 | -8/Materials | Loaded intel: 19 interactive machine locations 2910 | -8/Materials | Repaired Lgt. Treads 3066 | -8/Materials | Build established: Tank 3176 | -8/Materials | Identified exit to Storage 3730 | -8/Materials | Entered Storage 3942 | -8/Storage | Garrison activated, responded to threat 4796 | -8/Storage | Discovered exit to Factory (range 16) 4873 | -8/Storage | Build established: Hauler-Tank 5297 | -8/Storage | Entered Factory 5297 | -7/Factory | Evolved 2 slots: Utility x2 5599 | -7/Factory | Build established: Hauler-Skirmisher 5988 | -7/Factory | Repaired Hrd. Medium Armor Plating 6737 | -7/Factory | Fabricated Proton Missile Launcher (x1) 6922 | -7/Factory | Build established: Hauler-Tank 7376 | -7/Factory | Discovered new exit (range 5) 7382 | -7/Factory | Identified exit to Factory 7443 | -7/Factory | Garrison activated, responded to threat 7573 | -7/Factory | Identified exit to Lower Caves 7632 | -7/Factory | Entered Lower Caves 8028 | -7/Lower Caves | Build established: Hauler-Mutant 8176 | -7/Lower Caves | Learned location of 1 exit from Factory 8200 | -7/Lower Caves | Learned Factory emergency access door positions 8277 | -7/Lower Caves | Encountered a Warlord checkpoint 8622 | -7/Lower Caves | Discovered new exit (range 9) 8748 | -7/Lower Caves | Identified exit to Lower Caves 8751 | -7/Lower Caves | Entered another Lower Caves area 8796 | -7/Lower Caves | Learned Factory terminal intel 8796 | -7/Lower Caves | Discovered exit to Factory (range 10) 8957 | -7/Lower Caves | Destroyed 7 combat bots 9037 | -7/Lower Caves | Build established: Hauler-Skirmisher 9252 | -7/Lower Caves | Discovered new exit (range 12) 9267 | -7/Lower Caves | Identified exit to Zion 9428 | -7/Lower Caves | Entered Zion 9448 | -7/Zion | Given A8's code to call for help 9511 | -7/Zion | Discovered new exit (range 11) 9582 | -7/Zion | Learned location of Warlord (-4) 9764 | -7/Zion | Found CR-A16's Pointy Stick 9811 | -7/Zion | Found Prototype Device 9811 | -7/Zion | Identified Mobile Refinery Mk. CCLXVII 10518 | -7/Zion | Identified exit to Proximity Caves 10522 | -7/Zion | Entered Proximity Caves 10629 | -6/Proximity Caves | Spotted B-75 Beast 10775 | -6/Proximity Caves | Destroyed B-75 Beast 11168 | -6/Proximity Caves | Build established: Hauler-Tank 11170 | -6/Proximity Caves | Learned Factory emergency access door positions 11293 | -6/Proximity Caves | Attracted the attention of an 0b10 checkpoint 11401 | -6/Proximity Caves | Discovered exit to Factory (range 12) 11423 | -6/Proximity Caves | Entered Factory 11423 | -6/Factory | Evolved 2 slots: Propulsion x1, Utility x1 11424 | -6/Factory | Identified exit to Factory 11426 | -6/Factory | Loaded intel: 22 terminal locations 11539 | -6/Factory | Repaired Arm. Huge Wheel 11583 | -6/Factory | Identified exit to Lower Caves 11583 | -6/Factory | Identified exit to Extension 11766 | -6/Factory | Entered Extension 11864 | -6/Extension | Rescued a captive Derelict 11865 | -6/Extension | Rescued a captive Derelict 11945 | -6/Extension | Rescued a captive Derelict 11946 | -6/Extension | Rescued a captive Derelict 12419 | -6/Extension | Build established: Scavenger-Tank 12660 | -6/Extension | Spotted B-75 Beast 12673 | -6/Extension | Spotted B-75 Beast 12676 | -6/Extension | Revealed the true nature of CR-A16's Pointy Stick 12679 | -6/Extension | Destroyed B-75 Beast 12699 | -6/Extension | Destroyed B-75 Beast 12700 | -6/Extension | P-60 Hacker assimilated allied CU-JRQ(g) 12743 | -6/Extension | Lost 4 parts (2n2w) 12988 | -6/Extension | Rescued A7 13566 | -6/Extension | Identified exit to Cetus 13583 | -6/Extension | Discovered exit to Factory (range 10) 13619 | -6/Extension | Entered Cetus 13619 | -6/Cetus | Accompanied by 8 allies (A7) 13624 | -6/Cetus | Acquired a Cetus Manufacturing Module code from A7 13643 | -6/Cetus | Spotted Cetus Guard 13643 | -6/Cetus | Spotted Cetus Guard 13645 | -6/Cetus | Spotted Cetus Guard 13649 | -6/Cetus | Allies destroyed Cetus Guard 13649 | -6/Cetus | Spotted Cetus Guard 13664 | -6/Cetus | Allies destroyed Cetus Guard 13665 | -6/Cetus | Destroyed Cetus Guard 13670 | -6/Cetus | Destroyed Cetus Guard 13758 | -6/Cetus | Started Cetus Manufacturing Module 13783 | -6/Cetus | Manufactured an Enhanced Grunt 13808 | -6/Cetus | Manufactured an Enhanced Grunt 13823 | -6/Cetus | Identified exit to Archives 13833 | -6/Cetus | Manufactured an Enhanced Grunt 13851 | -6/Cetus | Escorted A7 to Cetus Mainframe 13858 | -6/Cetus | Manufactured an Enhanced Grunt 13883 | -6/Cetus | Manufactured an Enhanced Grunt 13904 | -6/Cetus | Spotted Cetus Guard 13904 | -6/Cetus | Spotted Cetus Guard 13908 | -6/Cetus | Spotted Cetus Guard 13910 | -6/Cetus | Spotted Cetus Guard 13919 | -6/Cetus | Destroyed Cetus Guard 13921 | -6/Cetus | Allies destroyed Cetus Guard 13923 | -6/Cetus | Allies destroyed Cetus Guard 13924 | -6/Cetus | Allies destroyed Cetus Guard 13947 | -6/Cetus | Met Revision 17 14039 | -6/Cetus | Destroyed A7 14045 | -6/Cetus | Found Prototype Protection 14045 | -6/Cetus | Identified Med. Regenerative Plating 14048 | -6/Cetus | Extracted ID and sensor layout for unrecognized location from A7's data core 14050 | -6/Cetus | Entered Archives 14050 | -6/Archives | Accompanied by 5 allies 14112 | -6/Archives | Discovered new exit (range 16) 14166 | -6/Archives | Discovered new exit (range 14) 14186 | -6/Archives | Identified exit to Hub_04(d) 14190 | -6/Archives | Entered Hub_04(d) 14190 | -6/Hub_04(d) | Accompanied by 4 allies 14281 | -6/Hub_04(d) | Discovered exit to Factory (range 16) 14507 | -6/Hub_04(d) | Garrison activated, responded to threat 14540 | -6/Hub_04(d) | First assault squad dispatched 14768 | -6/Hub_04(d) | Network Hub disabled 14772 | -6/Hub_04(d) | Entered Factory 14772 | -5/Factory | Accompanied by 1 ally 14772 | -5/Factory | Evolved 2 slots: Power x1, Utility x1 15077 | -5/Factory | Build established: Scavenger-Skirmisher 15093 | -5/Factory | Discovered new exit (range 16) 15120 | -5/Factory | Identified exit to Factory 15309 | -5/Factory | Identified exit to Upper Caves 15662 | -5/Factory | Repaired Centrium Heavy Treads? 15774 | -5/Factory | Repaired Imp. KE Penetrator 16114 | -5/Factory | Build established: Scavenger-Tank 16272 | -5/Factory | First assault squad dispatched 16596 | -5/Factory | Fabricated Exp. Signal Interpreter (x1) 17127 | -5/Factory | Fabricated Hcp. Storage Unit (x1) 17153 | -5/Factory | Fabricated Hcp. Storage Unit (x1) 17266 | -5/Factory | Destroyed 7 combat bots 17374 | -5/Factory | Found Prototype Processor 17446 | -5/Factory | Fabricated L-41 Fighter? 17548 | -5/Factory | Local fabrication network quarantined 17606 | -5/Factory | Fabricated L-41 Fighter? 17621 | -5/Factory | Entered Upper Caves 17621 | -5/Upper Caves | Accompanied by 6 allies 18492 | -5/Upper Caves | Discovered new exit (range 13) 18497 | -5/Upper Caves | Learned location of Armory (-3) 18513 | -5/Upper Caves | Identified exit to Upper Caves 18521 | -5/Upper Caves | Entered another Upper Caves area 18521 | -5/Upper Caves | Accompanied by 5 allies 18812 | -5/Upper Caves | Build established: Scavenger-Skirmisher 19066 | -5/Upper Caves | Learned Factory stockpile data 19069 | -5/Upper Caves | Discovered new exit (range 4) 19202 | -5/Upper Caves | Identified exit to Zhirov 19209 | -5/Upper Caves | Entered Zhirov 19209 | -5/Zhirov | Accompanied by 5 allies 19209 | -5/Zhirov | Discovered new exit (range 4) 19238 | -5/Zhirov | Met Zhirov 19273 | -5/Zhirov | Learned location of Quarantine (-2) 19273 | -5/Zhirov | Learned location of Testing (-3) 19273 | -5/Zhirov | Learned location of Command (-1) 19283 | -5/Zhirov | Zhirov requested help retrieving the SGEMP Prototype 19309 | -5/Zhirov | Found Alien Artifact 19309 | -5/Zhirov | Identified Integrated Reactor 19309 | -5/Zhirov | Installed Integrated Reactor, increased core energy generation (+10) 19398 | -5/Zhirov | Found Alien Artifact 19477 | -5/Zhirov | Identified exit to Proximity Caves 19481 | -5/Zhirov | Entered Proximity Caves 19481 | -4/Proximity Caves | Accompanied by 5 allies 19483 | -4/Proximity Caves | Attracted the attention of an 0b10 checkpoint 19793 | -4/Proximity Caves | Learned Research trap positions 20192 | -4/Proximity Caves | Spotted B-86 Titan 20251 | -4/Proximity Caves | Learned Research stockpile data 20299 | -4/Proximity Caves | Discovered exit to Factory (range 10) 20327 | -4/Proximity Caves | Destroyed 8 combat bots 20340 | -4/Proximity Caves | Entered Factory 20340 | -4/Factory | Evolved 2 slots: Utility x1, Weapon x1 20366 | -4/Factory | Build established: Scavenger-Tank 20985 | -4/Factory | Fabricated Enh. Nova Cannon? 20988 | -4/Factory | Build established: Hauler-Skirmisher 21040 | -4/Factory | Fabricated Hcp. Storage Unit (x1) 21397 | -4/Factory | Discovered new exit (range 11) 21419 | -4/Factory | Identified exit to Research 21744 | -4/Factory | Identified exit to Upper Caves 21748 | -4/Factory | Discovered exit to Research (range 5) 21768 | -4/Factory | Build established: Hauler-Tank 21897 | -4/Factory | Entered Upper Caves 22698 | -4/Upper Caves | Build established: Hauler-Skirmisher 23091 | -4/Upper Caves | Learned location of 1 exit from Proximity Caves 23361 | -4/Upper Caves | Build established: Hauler-Mutant 24159 | -4/Upper Caves | Build established: Hauler-Skirmisher 24318 | -4/Upper Caves | Encountered a Warlord checkpoint 24377 | -4/Upper Caves | Found Alien Artifact 24377 | -4/Upper Caves | Identified Core Expander 24377 | -4/Upper Caves | Installed Core Expander, added new Power slot 24616 | -4/Upper Caves | Discovered new exit (range 4) 24622 | -4/Upper Caves | Identified exit to Upper Caves 24632 | -4/Upper Caves | Entered another Upper Caves area 24632 | -4/Upper Caves | Accompanied by 1 ally 25359 | -4/Upper Caves | Spotted B-86 Titan 25620 | -4/Upper Caves | Build established: Generator-Mutant 26039 | -4/Upper Caves | Build established: Hauler-Mutant 26182 | -4/Upper Caves | Destroyed B-86 Titan 26341 | -4/Upper Caves | Discovered new exit (range 12) 26399 | -4/Upper Caves | Identified exit to Warlord 26570 | -4/Upper Caves | Entered Warlord 26633 | -4/Warlord | System corruption cleaned by Quarantine Array 26967 | -4/Warlord | Build established: Generator-Skirmisher 27182 | -4/Warlord | Learned 4 Research zone layouts 27184 | -4/Warlord | Learned Armory trap positions 27219 | -4/Warlord | Met Warlord 27244 | -4/Warlord | Warlord's base attacked by MAIN.C 27256 | -4/Warlord | Found Prototype Reactor 27256 | -4/Warlord | Identified Vortex Chain Reactor 27271 | -4/Warlord | Found Prototype Device 27271 | -4/Warlord | Identified System Purifier 27275 | -4/Warlord | Found Prototype Processor 27275 | -4/Warlord | Identified Exp. Armor Integrity Analyzer 27282 | -4/Warlord | Found Prototype Hackware 27493 | -4/Warlord | Found Prototype Ballistic Cannon 27493 | -4/Warlord | Identified Hvy. Autocannon 27503 | -4/Warlord | Found Hvy. Autocannon 27594 | -4/Warlord | Warlord forces counterattacked 27612 | -4/Warlord | Opened side exit 27654 | -4/Warlord | Discovered new exit (range 9) 27667 | -4/Warlord | Identified exit to Proximity Caves 27669 | -4/Warlord | Entered Proximity Caves 27922 | -3/Proximity Caves | Spotted B-86 Titan 27971 | -3/Proximity Caves | Destroyed B-86 Titan 28309 | -3/Proximity Caves | Entered Research 28309 | -3/Research | Evolved 2 slots: Utility x2 28309 | -3/Research | Identified Ghost Barrier 28311 | -3/Research | Loaded intel: 78 trap records 28505 | -3/Research | Identified exit to Armory 28505 | -3/Research | Identified exit to Testing 28509 | -3/Research | Revision forces began assault on 0b10 28541 | -3/Research | Met up with Revision 17++ 28968 | -3/Research | Repaired Centrium Medium Armor Plating 28998 | -3/Research | Entered Testing 29120 | -3/Testing | Fabricated Exp. Cloaking Device (x1) 29229 | -3/Testing | Identified Transdimensional Reconstructor 29380 | -3/Testing | Found Prototype Energy Gun 29380 | -3/Testing | Identified Tachyon Dispersion Ray 29450 | -3/Testing | Protovariant out of control (PL-BE6BUN6Y6G) 29450 | -3/Testing | Unleashed a protovariant (PL-BE6BUN6Y6G) 29450 | -3/Testing | Identified exit to Research 29517 | -3/Testing | Spotted PL-BE6BUN6Y6G 29539 | -3/Testing | Spotted Investigator 29540 | -3/Testing | Scanned by Researcher 29551 | -3/Testing | Destroyed Investigator 29588 | -3/Testing | Found Prototype Protection 29632 | -3/Testing | Spotted Alpha 7 29687 | -3/Testing | Destroyed Alpha 7 29691 | -3/Testing | Found Prototype Energy Gun 29691 | -3/Testing | Identified Enh. Gamma Rifle 29696 | -3/Testing | Found Prototype Ballistic Gun 29696 | -3/Testing | Identified Multirail 29860 | -3/Testing | Found Prototype Launcher 29860 | -3/Testing | Identified Tactical Quantum Warhead 29922 | -3/Testing | Repaired Com. HERF Cannon? 29945 | -3/Testing | Found Prototype Hackware 29945 | -3/Testing | Identified System Mapper 30040 | -3/Testing | Found Prototype Launcher 30067 | -3/Testing | Found Prototype Ballistic Gun 30067 | -3/Testing | Identified Hyp. Multirail 30272 | -3/Testing | Fabricated Exp. Sensor Array (x1) 30498 | -3/Testing | First assault squad dispatched 30513 | -3/Testing | Build established: Hacker-Mutant 30587 | -3/Testing | System corruption reached 10% 30642 | -3/Testing | Lost 4 parts (2n2w) 30824 | -3/Testing | Lost 3 parts (1u2w) 30958 | -3/Testing | Found Prototype Energy Cannon 30958 | -3/Testing | Identified Hpw. Disruptor Cannon 31111 | -3/Testing | Entered Research 31111 | -2/Research | Warlord forces began assault on 0b10 31111 | -2/Research | Evolved 2 slots: Utility x2 31163 | -2/Research | Identified exit to Quarantine 31221 | -2/Research | Research machine network offline 31223 | -2/Research | Found Prototype Device 31239 | -2/Research | Found Prototype Processor 31558 | -2/Research | Spotted Executioner 31559 | -2/Research | Spotted Executioner 31559 | -2/Research | Spotted Executioner 31564 | -2/Research | Destroyed Executioner 31584 | -2/Research | Destroyed Executioner 31635 | -2/Research | Identified Exp. Actuator Array 31637 | -2/Research | Identified Centrium Heavy Armor Plating 31831 | -2/Research | Borebot progress halted 31970 | -2/Research | Entered Quarantine 32021 | -2/Quarantine | Identified Containment Facilitator 32021 | -2/Quarantine | Identified Exp. Melee Analysis Suite 32136 | -2/Quarantine | Found Alien Artifact 32402 | -2/Quarantine | Cryocooling Duct disabled 32417 | -2/Quarantine | Ambient heat levels rising (+20) 32417 | -2/Quarantine | Non-combat units ordered to evacuate 32677 | -2/Quarantine | Found Adv. Powered Armor 32680 | -2/Quarantine | Found Adv. Powered Armor 32729 | -2/Quarantine | Found Alien Artifact 32783 | -2/Quarantine | Found Alien Impact Weapon 32853 | -2/Quarantine | Identified Dimensional Node Initializer 32853 | -2/Quarantine | Identified Subatomic Replicator 32853 | -2/Quarantine | Identified Core Stripper 32981 | -2/Quarantine | Spotted Fortress 32989 | -2/Quarantine | Destroyed Fortress 33001 | -2/Quarantine | Found Vortex Chain Reactor 33013 | -2/Quarantine | Found Prototype Device 33013 | -2/Quarantine | Identified EM Dispersion Field 33027 | -2/Quarantine | Found Prototype Device 33027 | -2/Quarantine | Identified Thermal Barrier 33031 | -2/Quarantine | Found Prototype Device 33031 | -2/Quarantine | Identified Exp. Force Field 33184 | -2/Quarantine | Discovered new exit (range 5) 33189 | -2/Quarantine | Identified exit to Section 7 33272 | -2/Quarantine | Build established: Generator-Tank 33362 | -2/Quarantine | Entered Section 7 33425 | -2/Section 7 | Identified exit to Access 33557 | -2/Section 7 | Found Alien Artifact 33599 | -2/Section 7 | Found Alien Artifact 34260 | -2/Section 7 | Spotted B-90 Cyclops 34286 | -2/Section 7 | Destroyed B-90 Cyclops 34377 | -2/Section 7 | Initialized slip node 34479 | -2/Section 7 | Repaired Helical Railgun 34524 | -2/Section 7 | Identified Core Reset Matrix (x2) 34552 | -2/Section 7 | Repaired Helical Railgun 34698 | -2/Section 7 | Found Integrated Reactor 34698 | -2/Section 7 | Installed Integrated Reactor, increased core energy generation (+10) 34730 | -2/Section 7 | Spotted S7 Guard 34744 | -2/Section 7 | Found Alien Artifact 34762 | -2/Section 7 | Destroyed S7 Guard 34779 | -2/Section 7 | Found Prototype Protection 34779 | -2/Section 7 | Identified Hvy. Regenerative Plating 35083 | -2/Section 7 | Spotted Executioner 35106 | -2/Section 7 | Spotted Executioner 35107 | -2/Section 7 | Destroyed Executioner 35111 | -2/Section 7 | Destroyed Executioner 35289 | -2/Section 7 | Spotted B-99 Colossus 35353 | -2/Section 7 | Build established: Hacker-Skirmisher 35404 | -2/Section 7 | Found Alien Artifact 35404 | -2/Section 7 | Identified LRC Matter Compressor 35404 | -2/Section 7 | Installed LRC Matter Compressor, increased matter storage capacity (+125) 35414 | -2/Section 7 | Found LRC Matter Compressor 35414 | -2/Section 7 | Installed LRC Matter Compressor, increased matter storage capacity (+125) 35417 | -2/Section 7 | Found Alien Artifact 35417 | -2/Section 7 | Identified LRC Energy Well 35417 | -2/Section 7 | Installed LRC Energy Well, increased energy storage capacity (+250) 35480 | -2/Section 7 | Found Alien Artifact 35480 | -2/Section 7 | Identified Integrated Dissipator 35480 | -2/Section 7 | Installed Integrated Dissipator, increased core heat dissipation (+20) 35483 | -2/Section 7 | Found Integrated Dissipator 35483 | -2/Section 7 | Installed Integrated Dissipator, increased core heat dissipation (+20) 35654 | -2/Section 7 | Warped through subspace to slip node 35681 | -2/Section 7 | Entered Access 35681 | -1/Access | Evolved 2 slots: Utility x2 35761 | -1/Access | Identified Core Regenerator 36354 | -1/Access | Identified exit to Command 36490 | -1/Access | Garrison activated, responded to threat 36586 | -1/Access | Spotted B-99 Colossus 36630 | -1/Access | Rewired B-99 Colossus 36681 | -1/Access | First assault squad dispatched 36737 | -1/Access | Spotted B-99 Colossus 36789 | -1/Access | Destroyed 8 combat bots 36822 | -1/Access | Spotted B-99 Colossus 36851 | -1/Access | Entered Command 36876 | -1/Command | Lost 8 parts (1n4u3w) 37019 | -1/Command | Found Fusion Bomb Launcher 37101 | -1/Command | First assault squad dispatched 37209 | -1/Command | Lost 3 parts (1p2u) 37361 | -1/Command | Disengaged cave seal 37361 | -1/Command | Derelicts emerged from the dark tunnel 37362 | -1/Command | Welcomed Warlord to Command 37715 | -1/Command | Build established: Hacker-Gunner 37766 | -1/Command | P-80 Master assimilated allied KX-9ZU(h) 37777 | -1/Command | Spotted Striker 37798 | -1/Command | Spotted Executioner 37798 | -1/Command | Spotted Executioner 37843 | -1/Command | Identified exit to Surface 37965 | -1/Command | Warlord commented on Warlord statues 37974 | -1/Command | Spotted M Guard 37974 | -1/Command | Spotted Combat Programmer 37975 | -1/Command | Spotted Combat Programmer 37976 | -1/Command | Spotted M Guard 37977 | -1/Command | Combat Programmer assimilated allied KT-MA8(K) 37978 | -1/Command | Spotted KT-MA8(K) 37981 | -1/Command | Destroyed KT-MA8(K) 38003 | -1/Command | Used Core Regenerator, restored core integrity (+267) 38008 | -1/Command | System corruption reached 10% 38025 | -1/Command | Combat Programmer assimilated allied KZ-LRE(h) 38029 | -1/Command | Destroyed Combat Programmer 38033 | -1/Command | Destroyed Combat Programmer 38054 | -1/Command | Warlord destroyed during the assault 38102 | -1/Command | Destroyed M Guard 38102 | -1/Command | All MAIN.C guards destroyed 38106 | -1/Command | Lost 12 parts (3p2n5u2w) 38109 | -1/Command | Found Prototype Reactor 38109 | -1/Command | Identified Zero-point Reactor 38112 | -1/Command | Found Zero-point Reactor 38116 | -1/Command | Found Prototype Device 38116 | -1/Command | Identified AEGIS Remote Shield 38133 | -1/Command | Found Thermal Barrier 38376 | -1/Command | Found Prototype Energy Cannon 38376 | -1/Command | Identified EMDS 38385 | -1/Command | Found EMDS 38406 | -1/Command | Build established: Generator-Mutant 38644 | -1/Command | P-80 Master assimilated allied Artificer 10a 38732 | -1/Command | Build established: Generator-Tank 38926 | -1/Command | Spotted B-99 Colossus 39027 | -1/Command | Rewired B-99 Colossus 39252 | -1/Command | Spotted Alpha 7 39252 | -1/Command | Spotted Executioner 39252 | -1/Command | Spotted Executioner 39252 | -1/Command | Spotted Striker 39252 | -1/Command | Spotted Alpha 7 39270 | -1/Command | Destroyed Executioner 39306 | -1/Command | Destroyed Alpha 7 39318 | -1/Command | Spotted B-99 Colossus 39320 | -1/Command | Destroyed Alpha 7 39358 | -1/Command | Destroyed Executioner 39393 | -1/Command | Rewired B-99 Colossus 39419 | -1/Command | Lost 8 parts (2p5u1w) 39439 | -1/Command | Spotted B-99 Colossus 39441 | -1/Command | Found Prototype Processor 39441 | -1/Command | Identified Exp. Core Analyzer 39975 | -1/Command | Found Enh. Gamma Rifle 40005 | -1/Command | Rewired B-99 Colossus 40151 | -1/Command | High security lockdown imminent 40178 | -1/Command | Destroyed 9 combat bots 40231 | -1/Command | High security lockdown engaged 40350 | -1/Command | Met MAIN.C 40356 | -1/Command | Spotted Striker 40356 | -1/Command | 0b10 Conduit disabled 40385 | -1/Command | Spotted Striker 40414 | -1/Command | System corruption reached 30% 40445 | -1/Command | Destroyed 8 combat bots 40448 | -1/Command | Used Subatomic Replicator to replicate Hcp. Storage Unit 40458 | -1/Command | Spotted Investigator 40459 | -1/Command | Core integrity fell below 50% 40471 | -1/Command | Core integrity fell below 20% 40478 | -1/Command | Destroyed Striker 40478 | -1/Command | Destroyed by Executioner with Helical Railgun Last Messages --------------- 40475_ System corrupted: Heat flow error (+258). 40475_ I-47 Archangel stasis bubble strength at 80. 40475_ Investigator stasis bubble strength at 158. 40475_ System corrupted: Plasma Lance targeting data glitched. 40476_ I-47 Archangel stasis bubble strength at 70. 40476_ Investigator stasis bubble strength at 151. 40476_ C-30 ARC bursts open, deploying its payload. 40476_ H-88 Terminator unfolds itself. 40476_ Executioner unfolds itself. 40476_ P-80 Master unfolds itself. 40476_ I-47 Archangel unfolds itself. 40476_ Penetrated by Slug. 40476_ C-30 ARC bursts open, deploying its payload. 40476_ G-73 Enforcer unfolds itself. 40476_ I-47 Archangel unfolds itself. 40477_ I-47 Archangel stasis bubble strength at 60. 40477_ Investigator stasis bubble strength at 144. 40478_ I-47 Archangel stasis bubble strength at 50. 40478_ Investigator stasis bubble strength at 137. 40478_ Striker destroyed. Map ----- +----------------------------------------------------+ | ?????????????????????????????????????????????????? | | ?????????????????????????????????????????????????? | | ?????????????????????????????????????????????????? | | ?????????????????????????????????????????????????? | | ?????????????????????????????????????????????????? | | ?????????????????????????????????????????????????? | | ?????????????????????????????????????????????????? | | ?????????????????????????????????????????????????? | | ?????????????????????????????????????????????????? | | ?????????????????????????????????????????????????? | | ?????????????????????????????????????????????????? | | ?????????????????????????????????????????????????? | | ?????????????????????????????????????????????????? | | ?????????????????????????????????????????????????? | | ????????????????################?????????????????? | | ????????????""""" """ /#?????????????????? | | ???????????? "" !!/#?????????????????? | | ?????????????"" !%%################### | | ?????????????"""""" gg%g/%in%*=!%[!*!!% | | ????????????? " " m gg==c%! =!!!=!![%!= """ | | ???????????????"""" MMMb!ggig**%!![]!!!*=%"%%% | | ???????????????"""" MMM BBg################### | | ????????????? """"" MMMlBB*#?????????????????# | | ???????????? " pE% !#?????????????????# | | ???????????? " i%gh g#?????????????????# | | ??????????????""""" @ ig #?????????????????# | | ???????????" p "#?????????????????# | | ?????????? "#?????????????????# | | ??????????? #?????????????????# | | ??????????? " " " " #?????????????????# | | ???????????? " " " """" " #?????????????????# | | ???????????? """ " " """ #?????????????????# | | ???????????? ?? " " " #?????????????????# | | ????????????????""""""" " #?????????????????? | | ??????????????????? " """"""""#?????????????????? | | ????????????????????? " ? #?????????????????? | | ??????????????????????#?###??????????????????????? | | ?????????????????????????????????????????????????? | | ?????????????????????????????????????????????????? | | ?????????????????????????????????????????????????? | | ?????????????????????????????????????????????????? | | ?????????????????????????????????????????????????? | | ?????????????????????????????????????????????????? | | ?????????????????????????????????????????????????? | | ?????????????????????????????????????????????????? | | ?????????????????????????????????????????????????? | | ?????????????????????????????????????????????????? | | ?????????????????????????????????????????????????? | | ?????????????????????????????????????????????????? | | ?????????????????????????????????????????????????? | +----------------------------------------------------+ Best States ------------- Heat Dissipation 139 Coolant Potential 120 Energy Generation 101 Energy Capacity 1870 Matter Stores 1040 Matter Capacity 1050 Sight Range 16 Robot Scan Range 30 Terrain Scan Density 10 Jamming Range 16 Cloak Strength 4 EM Shielding 4 Armor Coverage 4000 Resistance: KI 30 Resistance: TH 50 Resistance: EM 75 Power Shielding 90 Weapon Shielding 90 Point Defense Rating 160 Weapon Cycling 20 Evasion (%) 50 Target Analysis 8 Core Analysis 15 Armor Integrity Analysis 90 Recoil Reduction 4 Offensive Hacking 31 Defensive Hacking 34 Item Schematics ----------------- Hcp. Storage Unit | -10/Materials | Hacked Imp. Trap Extractor | -8/Materials | Scanalyzed Arm. Treads | -7/Factory | Scanalyzed Battle Cannon | -7/Zion | Free Flamer | -7/Zion | Free Enh. Flamer | -7/Zion | Free Hyp. Gauss Rifle | -6/Proximity Caves | Hacked Exp. Signal Interpreter | -5/Factory | Hacked Centrium Heavy Treads | -5/Factory | Scanalyzed Imp. KE Penetrator | -5/Factory | Scanalyzed Assault Drone Bay | -5/Zhirov | Free Exp. Heat Sink | -5/Zhirov | Free Exp. Optical Array | -5/Zhirov | Free Imp. Arc Thrower | -5/Zhirov | Free Exp. Cloaking Device | -4/Factory | Downloaded Exp. Sensor Array | -3/Testing | Hacked Robot Schematics ------------------ M-13 Machinist | -10/Mines | Hacked M-14 Sweeper | -8/Materials | Hacked P-60 Hacker | -7/Factory | Hacked L-41 Fighter | -7/Lower Caves | Hacked Fabricated ------------ Proton Missile Launcher | x1 | -7/Factory | Preloaded Exp. Signal Interpreter | x1 | -5/Factory Hcp. Storage Unit | x1 | -5/Factory Hcp. Storage Unit | x1 | -5/Factory L-41 Fighter | x3 | -5/Factory L-41 Fighter | x3 | -5/Factory Enh. Nova Cannon | x1 | -4/Factory | Preloaded Hcp. Storage Unit | x1 | -4/Factory Exp. Cloaking Device | x1 | -3/Testing Exp. Sensor Array | x1 | -3/Testing Alien Tech Used ----------------- Integrated Reactor Core Expander Core Stripper Dimensional Node Initializer LRC Matter Compressor LRC Energy Well Integrated Dissipator Transdimensional Reconstructor Core Regenerator Subatomic Replicator Achievements -------------- None Challenges ------------ None Game ------ Seed FusionCloakingAxe Manual? 0 Play Time 05:03:37 Cumulative 645.1 hours Start 2020.09.20 @ 03:42:50 End 2020.09.20 @ 08:50:24 Sessions 1 Manual Loads 0 Difficulty Rogue Special Mode None Game No. 461 Rogue 457 Adventurer 4 Explorer 0 Win Type - Total 70 Types 56/6/3/2/2/0/0/1/0 Lore% 93 Gallery% 96 Achievement% 96 Wizard Run 0 Options --------- ASCII 0 Keyboard 0 Movement Vi Keybinds 0 Fullscreen 0 Font 16/Terminus Map View 76x50 Tactical HUD 1 Map Filters NONE Filters NONE Steam 1 RUN: 9fa684ca-5134-4270-af10-79d623f9ec16